Cogmind - Beta 15 @@@ ROGUE MODE // 2025.06.01 @ 19:49:38 Player: Cracklepappy Result: System corrupted Performance ------------- Evolutions (8) 4000 Regions Visited (34) 6800 Robots Destroyed (838) 4190 Value Destroyed (41896) 41896 Prototype IDs (146) 2920 Alien Tech Used (2) 400 Bonus (23734) 23734 TOTAL SCORE: 83940 Bonus ------- High Alert Combat Kills 11452 Follower Combat Kills 4873 Entered Garrisons 1800 Used RIF Installer 5000 Aligned with FarCom 300 Scanned by Researcher 500 Friendly Fire -191 Cogmind --------- Core Integrity 0/1450 Matter 68/300 Energy 77/750 System Corruption 102% Temperature Cool (-200) Movement Walking (120) Location -2/Protoforge Parts ------- > --- POWER (2) -------- Micro Antimatter Reactor > --- PROPULSION (4) --- Myomer Leg Myomer Leg Centrium Leg > --- UTILITY (13) ----- Advanced Cryofiber Web Experimental Heat Sink Experimental Heat Sink Experimental Energy Well Concept Core Shell Concept Core Shell Concept Core Shell Concept Core Shell Concept RG22 Armor Advanced Point Defense System Relay Coupler [Sentry] (43) Relay Coupler [Demolisher] (33) Relay Coupler [Heavy] (11) > --- WEAPON (4) ------- Latent Energy Streamer Enhanced Hardcell Cannon Concept Concussive Dispersal Blaster > --- INVENTORY (5) ---- Modified TNC Relay Coupler [Proto] (9) Transdimensional Reconstructor Improved Plasma Cutter Peak State ------------ > --- POWER ------------ Micro Antimatter Reactor Matter Drive > --- PROPULSION ------- Centrium Leg Centrium Leg Gravjet Array > --- UTILITY ---------- Advanced Cryofiber Web Experimental Heat Sink Experimental Heat Sink Cargo Storage Unit Experimental Energy Well Plexus Tether Concept Core Shell Concept Core Shell Centrium Heavy Armor Plating Concept RG22 Armor Relay Coupler [Heavy] > --- WEAPON ----------- Firepult Firepult > --- INVENTORY -------- Modified TNC Concept Recoil Nullifier Experimental EM Disruption Field Advanced Point Defense System Advanced Point Defense System Relay Coupler [NC] Relay Coupler [Brawler] Relay Coupler [Sentry] Relay Coupler [Sentry] Relay Coupler [Demolisher] Relay Coupler [Demolisher] Relay Coupler [Proto] Transdimensional Reconstructor Latent Energy Streamer Enhanced Hardcell Cannon Improved Plasma Cutter [Rating: 215] Favorites ----------- Power Reinforced Fission Core Engine Heavy Ion Engine Power Core Reinforced Fission Core Reactor Particle Reactor Propulsion Light Treads Treads Light Treads Leg Centrium Leg Wheel Armored Wheel Hover Unit Gravjet Array Flight Unit Improved Surge Thruster Utility Experimental Targeting Computer Device Improved Coolant Injector Storage Cargo Storage Unit Processor Experimental Targeting Computer Hackware Relay Coupler [Sentry] Protection Centrium Medium Armor Plating Weapon Heavy Assault Rifle Energy Gun Gatling Laser Energy Cannon Compact HERF Cannon Ballistic Gun Heavy Assault Rifle Ballistic Cannon Improved Light Cannon Launcher Rocket Launcher Special Weapon Advanced Remote Datajack Impact Weapon Power Maul Slashing Weapon Centrium Greatsword Piercing Weapon Lance Special Melee Weapon Datajack Build | -11 -10 -10 -9 -9 -9 -8 -8 -8 -8 -8 -8 -7 -7 -7 -7 -7 -7 -6 -6 -6 -6 -5 -5 -5 -5 -4 -4 -4 -4 -3 -3 -2 -2 -2 ------- Run | Yrd Mat Min Mat Min Exi Min Mat Gar Mat Sto Gar Fac Was Fac Gar Fac Gar Fac Gar Fac Gar Fac Was Fac Gar Fac Was Fac Gar Res Gar Res Qua Frg Slots Evolved 16 | . . . 2 . . . 2 . . . . 2 . . . . . 2 . . . 2 . . . 2 . . . 2 . 2 . . Power 1 | . . . . . . . . . . . . . . . . . . . . . . . . . . . . . . 1 . . . . Propulsion 2 | . . . 1 . . . . . . . . 1 . . . . . . . . . . . . . . . . . . . . . . Utility 11 | . . . . . . . 1 . . . . 1 . . . . . 2 . . . 2 . . . 2 . . . 1 . 2 . . Weapon 2 | . . . 1 . . . 1 . . . . . . . . . . . . . . . . . . . . . . . . . . . Parts Attached 503 | 8 14 5 35 . 14 3 28 23 8 14 6 15 2 15 23 6 12 7 13 6 12 8 . 5 31 9 2 22 40 6 39 11 28 33 Power 51 | 1 1 2 4 . 1 2 4 5 . 2 1 . . 3 4 . 2 . 2 1 1 . . . 2 . . 1 5 . 3 1 1 2 Engine 26 | 1 1 1 4 . 1 2 3 1 . 2 1 . . 2 3 . 1 . . 1 1 . . . . . . . 1 . . . . . Core 10 | . . 1 . . . . 1 4 . . . . . 1 1 . . . . . . . . . . . . . 1 . 1 . . . Reactor 15 | . . . . . . . . . . . . . . . . . 1 . 2 . . . . . 2 . . 1 3 . 2 1 1 2 Propulsion 96 | 2 3 1 11 . 4 . 9 4 3 4 . 5 . 4 3 2 4 . 3 . 3 . . . 7 1 . 4 3 . 2 5 3 6 Treads 60 | 2 3 1 11 . 3 . 8 3 3 4 . 5 . 3 . . 3 . 3 . 3 . . . . . . . 2 . 2 1 . . Leg 20 | . . . . . . . . . . . . . . . . . . . . . . . . . 3 1 . 4 1 . . 4 3 4 Wheel 11 | . . . . . 1 . 1 1 . . . . . 1 3 2 1 . . . . . . . . . . . . . . . . 1 Hover 1 | . . . . . . . . . . . . . . . . . . . . . . . . . . . . . . . . . . 1 Flight 4 | . . . . . . . . . . . . . . . . . . . . . . . . . 4 . . . . . . . . . Utility 181 | 2 3 . 3 . 2 1 4 6 2 4 4 4 2 7 9 2 4 4 3 4 4 3 . 1 11 6 1 9 16 2 23 4 11 20 Device 62 | 1 . . 3 . 1 1 2 3 . 3 2 . 1 3 . . 2 1 2 . 1 2 . . 4 3 . 3 5 . 7 . 7 5 Storage 13 | 1 2 . . . . . . . . . . 1 . 1 . . . . . . . . . . . 1 . . 3 . 2 . 2 . Processor 9 | . . . . . . . . 1 . . . 2 . . 1 . 1 . . . . . . . . . 1 2 . . . . . 1 Hackware 70 | . . . . . . . 1 1 2 . 2 . 1 2 6 2 1 1 1 3 2 1 . . 5 2 . 2 8 1 13 4 2 7 Protection 27 | . 1 . . . 1 . 1 1 . 1 . 1 . 1 2 . . 2 . 1 1 . . 1 2 . . 2 . 1 1 . . 7 Artifact . | . . . . . . . . . . . . . . . . . . . . . . . . . . . . . . . . . . . Weapon 175 | 3 7 2 17 . 7 . 11 8 3 4 1 6 . 1 7 2 2 3 5 1 4 5 . 4 11 2 1 8 16 4 11 1 13 5 Energy Gun 30 | 1 3 1 2 . . . 2 . . 1 . 4 . . . . . . . . 1 . . . 2 1 1 2 3 . 4 . . 2 Energy Cannon 28 | . . . 6 . . . 4 2 1 . . 2 . . . . . . . . 1 . . 2 . 1 . . 1 1 2 . 3 2 Ballistic Gun 66 | 2 2 1 5 . 1 . 1 3 1 3 1 . . . 4 2 2 3 4 1 2 2 . 2 5 . . 2 8 1 5 1 2 . Ballistic Cannon 24 | . . . 3 . 3 . 3 1 . . . . . . . . . . . . . 2 . . 1 . . 3 2 . . . 6 . Launcher 9 | . 1 . . . 2 . 1 . . . . . . 1 . . . . 1 . . . . . 1 . . . 1 . . . . 1 Special Weapon 10 | . 1 . . . . . . 1 1 . . . . . 2 . . . . . . 1 . . 1 . . . 1 1 . . 1 . Impact Weapon 2 | . . . 1 . . . . . . . . . . . 1 . . . . . . . . . . . . . . . . . . . Slashing Weapon 4 | . . . . . . . . 1 . . . . . . . . . . . . . . . . . . . 1 . 1 . . 1 . Piercing Weapon 1 | . . . . . . . . . . . . . . . . . . . . . . . . . 1 . . . . . . . . . Special Melee Weapon 1 | . . . . . 1 . . . . . . . . . . . . . . . . . . . . . . . . . . . . . Unidentified Prototypes 24 | . . . 3 . . . 1 . . 3 . 1 . . . . . 1 . . . . . 1 . . . 1 . . 1 . 1 11 Corrupted Parts 13 | . . 1 . . . . . . . . . . . . . . 1 . . . . . . 1 . . . . 5 . 2 . 1 2 System Corruption 61 | . . 8 . . . . . . . . . . . . . . 9 . . . . . . 2 . . . . 22 . 14 . 2 4 Parts Lost 95 | . 2 2 1 . 4 2 . 6 . . . 2 . 2 1 . 1 . 2 1 . 5 . . 6 2 . 7 5 5 2 4 3 30 Power 5 | . . . . . . 1 . 1 . . . . . 1 . . . . . . . . . . . . . . . . . . . 2 Propulsion 15 | . 1 1 1 . . . . . . . . . . . . . . . 1 . . . . . 2 1 . 1 . . . 1 . 6 Utility 31 | . . . . . 1 1 . 3 . . . . . . . . 1 . 1 . . 2 . . 1 . . 1 . 2 2 2 2 12 Weapon 44 | . 1 1 . . 3 . . 2 . . . 2 . 1 1 . . . . 1 . 3 . . 3 1 . 5 5 3 . 1 1 10 Highest Loss Streak 13 | . 1 1 1 . 4 1 . 2 . . . 1 . 1 1 . 1 . 1 1 . 2 . . 2 2 . 3 2 3 1 3 2 13 To Critical Strikes 4 | . . . . . 3 . . . . . . . . . . . . . 1 . . . . . . . . . . . . . . . Average Backups 22 | 4 17 23 23 24 21 18 19 19 19 19 20 19 19 19 23 23 22 21 22 23 23 24 24 25 25 24 24 25 24 24 25 25 26 22 Power . | . 1 2 . . . 1 . . . . . . . . 1 1 1 1 1 1 1 1 1 1 1 1 1 1 . . . . . 1 Propulsion 2 | 2 4 2 4 4 3 1 2 2 2 2 3 1 . 1 2 1 1 2 1 1 1 1 1 1 . . . 1 1 1 . . 1 . Utility 11 | . 4 6 9 6 4 9 10 10 10 9 9 10 9 8 11 13 12 10 11 12 13 13 14 15 16 16 16 15 17 17 15 16 17 14 Weapon 6 | . 7 13 8 12 12 6 5 5 5 5 5 5 8 8 6 6 6 6 6 6 6 6 6 5 5 4 6 5 3 4 7 6 4 2 Tool/Special . | . . . . . . . . . . . . . . . . . . . . . . . . . . . . . . . . . . . Unused Backups 122 | . 7 2 19 . 6 . 7 2 . 4 1 3 1 4 5 1 7 1 2 1 7 . . 1 10 3 . 5 3 . 3 2 6 9 Power 11 | . . 1 . . 3 . . . . . . . . . 1 . 1 . . . . . . . . 1 . . . . 1 . 2 1 Propulsion 17 | . 4 . . . 1 . 3 . . 3 . . . 2 1 . . . . . . . . . 1 . . 2 . . . . . . Utility 58 | . 2 . 9 . 2 . 1 2 . . 1 . . . 1 . 3 1 2 1 6 . . . 9 2 . . 3 . 2 1 3 7 Weapon 34 | . 1 1 10 . . . 3 . . 1 . 3 1 2 2 1 2 . . . 1 . . 1 . . . 3 . . . 1 1 . Tool/Special 2 | . . . . . . . . . . . . . . . . . 1 . . . . . . . . . . . . . . . . 1 Average Slot Usage (%) 91 | . 100 100 99 100 100 97 95 99 100 99 100 99 99 96 84 84 78 75 74 82 82 80 81 82 85 88 87 88 85 75 81 85 93 78 Engine 5 | . 14 13 10 11 11 9 6 2 . 8 9 7 7 3 5 7 2 . . . 6 5 5 5 3 . . . 1 . . . . . Core 1 | . . . . . . . 2 6 9 . . . . 3 1 . . . . . . . . . . . . . 1 4 3 4 3 1 Reactor 1 | . . . . . . . . . . . . . . . . . 4 6 6 5 . . . . 1 5 5 5 2 . 2 4 4 5 Treads 17 | . 28 28 33 33 26 33 26 8 16 27 27 30 30 27 4 . 10 6 14 20 17 11 11 11 2 . . . 6 9 9 7 . . Leg 2 | . . . . . . . . . . . . . . . . . . . . . . . . . 6 15 15 17 7 . . 1 16 13 Wheel 2 | . . . . . 6 . . 18 10 . . . . 1 18 23 6 6 . . . . . . 2 . . . . . . . . . Device 5 | . 5 . 10 11 7 11 8 6 . 5 4 . 1 5 1 . . 2 . 2 2 4 11 9 4 8 10 11 3 5 5 5 7 5 Storage 7 | . 14 14 11 11 11 11 9 9 9 9 9 7 7 7 7 7 7 6 6 6 6 5 5 5 5 5 5 5 5 4 4 4 4 4 Processor 5 | . . . . . . . . 6 9 9 9 14 15 9 7 7 13 13 13 13 13 10 5 5 5 5 7 9 9 4 4 4 4 2 Hackware 9 | . . . . . . . 8 3 8 1 4 6 5 4 1 6 . 2 1 2 7 16 17 17 17 21 15 16 23 27 27 35 33 27 Protection 2 | . 8 14 . . 3 . . 1 . 1 . . . . 4 . . 3 4 3 1 . . 1 5 5 5 2 4 3 2 . . 4 Energy Gun 4 | . 16 27 . . . . 7 . . . . 5 27 28 1 . . . . . . . . . 3 9 14 5 3 . 4 . . 1 Energy Cannon 3 | . . . 11 . . . 15 1 10 5 . 3 . . 9 15 2 . . . 2 1 2 4 . 1 . . . 1 4 2 5 4 Ballistic Gun 11 | . 9 . 17 . 4 . 3 14 16 30 35 20 . . 18 13 25 21 24 25 23 18 2 6 13 7 . 2 12 5 3 12 2 . Ballistic Cannon 4 | . . . 3 33 20 32 5 18 8 . . . . . . . . . . . . 1 10 11 1 . . 4 . 2 . . 5 2 Peak Build Rating 215 | 8 9 14 22 22 33 38 61 50 49 55 56 64 62 67 64 62 86 98 108 109 106 104 103 103 127 143 145 147 143 143 154 158 168 215 Average Rating 74 | 5 8 10 19 22 24 33 45 46 47 49 52 57 59 60 57 58 79 90 99 105 97 98 101 101 102 138 142 136 124 133 142 144 156 154 On Entrance 78 | . 8 9 14 22 22 33 33 44 49 45 53 49 61 61 63 58 62 81 95 108 105 91 94 103 103 124 141 139 143 126 143 134 158 165 Naked Turns . | . . . . . . . . . . . . . . . . . . . . . . . . . . . . . . . . . . . Heaviest Build 266 | 14 92 90 103 103 108 103 107 112 114 116 108 115 112 171 181 173 175 201 206 202 200 181 191 198 209 205 197 207 206 200 227 222 236 266 Greatest Support 155 | 40 40 40 60 60 60 60 60 36 62 62 60 88 88 88 52 52 150 28 150 140 150 150 150 150 150 120 120 120 155 155 155 145 120 120 Greatest Overweight (x) 26 | . 2 2 1 1 8 1 8 9 4 1 1 1 1 6 6 3 6 7 7 1 1 1 1 1 6 1 1 1 1 1 1 3 3 26 Average Overweight (x) 1 | . . 2 1 1 5 1 1 3 3 1 1 1 1 1 3 3 1 6 1 1 1 1 1 1 3 1 1 1 1 1 1 1 1 3 Largest Inventory Capacity 30 | 8 25 25 25 25 25 25 25 25 25 25 25 25 25 30 30 30 30 30 30 30 30 30 30 30 30 30 30 30 30 30 30 30 30 30 Average Capacity 27 | 7 18 25 25 25 25 25 25 25 25 25 25 25 25 25 30 30 30 30 30 30 30 30 30 30 30 30 30 30 30 30 30 30 30 27 Most Carried 30 | 8 25 25 25 25 25 25 25 25 25 25 25 25 25 30 30 30 30 30 30 30 30 30 30 30 30 30 30 30 30 30 30 30 30 30 Average Carried 26 | 4 17 23 24 25 23 24 24 24 24 24 24 24 24 25 29 29 29 29 29 29 29 29 29 29 29 29 29 29 29 29 29 29 29 25 Final Capacity 30 | 8 25 25 25 25 25 25 25 25 25 25 25 25 25 30 30 30 30 30 30 30 30 30 30 30 30 30 30 30 30 30 30 30 30 5 Final Carried 30 | 8 25 25 25 25 25 24 25 25 25 25 25 25 25 30 30 30 30 30 30 30 29 29 30 30 30 30 30 30 30 30 30 30 28 4 Class Distribution -------------------- 19% | Botlord-Gunner 16% | Scavenger-Gunner 11% | Gunner 10% | Botlord-Tank 8% | Mutant 7% | Scavenger-Tank 6% | Bothacker-Gunner 4% | Hauler-Gunner 4% | Scavenger-Mutant 3% | Hauler-Tank Dominant Class ---------------- Mutant | -10/Materials Mutant | -10/Mines Scavenger-Gunner | -9/Materials Scavenger-Tank | -9/Mines Scavenger-Mutant | -9/Exiles Scavenger-Tank | -8/Mines Scavenger-Gunner | -8/Materials Scavenger-Gunner | -8/Garrison Scavenger-Gunner | -8/Materials Gunner | -8/Storage Commander-Gunner | -8/Garrison Gunner | -7/Factory Gunner | -7/Waste Gunner | -7/Factory Bothacker-Gunner | -7/Garrison Bothacker-Gunner | -7/Factory Bothacker-Gunner | -7/Garrison Hauler-Gunner | -6/Factory Hauler-Tank | -6/Garrison Hauler-Tank | -6/Factory Botlord-Gunner | -6/Garrison Botlord-Gunner | -5/Factory Botlord-Tank | -5/Waste Botlord-Tank | -5/Factory Botlord-Gunner | -5/Garrison Botlord-Gunner | -4/Factory Botlord-Gunner | -4/Waste Botlord-Gunner | -4/Factory Botlord-Gunner | -4/Garrison Botlord-Tank | -3/Research Botlord-Tank | -3/Garrison Botlord-Tank | -2/Research Botlord-Gunner | -2/Quarantine Botlord-Gunner | -2/Protoforge Resources | -11 -10 -10 -9 -9 -9 -8 -8 -8 -8 -8 -8 -7 -7 -7 -7 -7 -7 -6 -6 -6 -6 -5 -5 -5 -5 -4 -4 -4 -4 -3 -3 -2 -2 -2 ----------- Run | Yrd Mat Min Mat Min Exi Min Mat Gar Mat Sto Gar Fac Was Fac Gar Fac Gar Fac Gar Fac Gar Fac Was Fac Gar Fac Was Fac Gar Res Gar Res Qua Frg Matter Collected 32664 | 300 329 214 1147 72 955 610 834 2383 444 922 458 683 279 744 1340 299 1105 . 1513 903 1322 1388 225 595 1568 653 . 1763 2368 812 1486 1089 2531 1330 Remotely 2175 | . . . . . . . . . . . . . . . . . . . 243 . . 202 . . 264 . . 980 . 486 . . . . Salvage Created 39165 | 196 675 230 2186 98 513 452 2370 1633 422 1661 583 1065 279 1953 1784 341 1235 . 806 945 2080 1603 . 380 884 1048 . 2201 1804 1767 905 1038 2891 3137 Parts 1799 | 13 47 19 150 7 57 18 149 89 23 89 27 53 . 56 63 22 57 . 56 43 83 62 . 15 41 53 . 87 88 78 40 47 83 84 Haulers Intercepted 16 | . 2 . 6 . . . 5 . . 1 . 1 . . . . . . . . . . . . . . . . . 1 . . . . Recyclers Shooed 32 | . 3 . 3 . . . 2 . 2 2 . 2 . 1 . . . . . 2 . 2 . 1 . 4 . 2 . 3 . 2 1 . Parts Field Recycled . | . . . . . . . . . . . . . . . . . . . . . . . . . . . . . . . . . . . Retrieved Matter . | . . . . . . . . . . . . . . . . . . . . . . . . . . . . . . . . . . . Parts Self-Destructed . | . . . . . . . . . . . . . . . . . . . . . . . . . . . . . . . . . . . Prevented . | . . . . . . . . . . . . . . . . . . . . . . . . . . . . . . . . . . . Kills | -11 -10 -10 -9 -9 -9 -8 -8 -8 -8 -8 -8 -7 -7 -7 -7 -7 -7 -6 -6 -6 -6 -5 -5 -5 -5 -4 -4 -4 -4 -3 -3 -2 -2 -2 ------- Run | Yrd Mat Min Mat Min Exi Min Mat Gar Mat Sto Gar Fac Was Fac Gar Fac Gar Fac Gar Fac Gar Fac Was Fac Gar Fac Was Fac Gar Res Gar Res Qua Frg Combat Hostiles Destroyed 663 | . 20 8 40 4 4 16 42 49 7 21 12 18 1 43 27 6 20 . 15 11 37 25 . 4 21 16 . 27 33 22 14 9 43 48 Guns 301 | . 10 4 11 . . . 14 8 1 18 10 15 . 36 16 3 14 . 8 11 36 18 . 2 13 15 . 7 17 3 4 5 2 . Cannons 177 | . . . 25 4 1 15 17 21 4 1 . 3 . 1 11 3 2 . . . 1 3 . 1 5 . . 13 1 10 3 2 24 6 AOE 114 | . 9 3 4 . 3 1 9 19 2 2 2 . . 3 . . 4 . 7 . . 4 . . 3 . . 5 8 6 3 . 3 14 Classes Destroyed 31 | 3 6 . 3 . 3 2 1 3 . 1 . . 1 . . . . . 1 . . . . . 2 . . . . . 2 . . 3 Worker 36 | 2 1 . 3 . . . 4 . 1 2 . . . 1 . 1 . . . 2 . . . . . 2 . 3 . 10 . 3 . 1 Builder 34 | . 1 . 1 . . . 4 . . . . 2 . 2 . . . . . 2 . 3 . . . 1 . 1 . 10 . 2 . 5 Tunneler 7 | 3 1 . 2 . . . . . . . . . . . . 1 . . . . . . . . . . . . . . . . . . Hauler 16 | . 2 . 6 . . . 5 . . 1 . 1 . . . . . . . . . . . . . . . . . 1 . . . . Recycler 40 | 1 1 . 3 1 . 2 4 . 2 5 . 2 . 3 . . . . . 2 . 2 . 1 . 1 . 5 . 2 . 2 1 . Mechanic 4 | . . . 2 . . . . . . . . . . . . . . . . . . . . . . . . . . 1 . . . 1 Operator 4 | . . . 2 . . . 1 . . . . . . . . . . . . . . . . . . . . . . . . . 1 . Drone 4 | . . . . . . . . . . . . . . . . . . . . . . . . . . . . . . . . . . 4 Turret 1 | . . . . . 1 . . . . . . . . . . . . . . . . . . . . . . . . . . . . . Watcher 19 | . 1 . 5 . . . 4 1 . 2 . 2 . 2 . . . . 1 . . 1 . . . . . . . . . . . . Swarmer 136 | . 11 6 14 4 . 7 12 12 2 . 1 3 . 2 4 . 5 . 9 2 14 . . . . 5 . 2 15 3 2 1 . . Cutter 7 | . . . . . . . . . . . . . . . . . . . . . . . . . 5 . . . . . 2 . . . Saboteur 7 | . . . . . . . . 4 . . . . . . . . . . . . . 1 . . . . . . . . . . 1 1 Grunt 233 | . 7 2 16 . . 7 14 17 3 11 5 8 . 28 11 5 10 . . 1 15 13 . 2 4 5 . 7 4 13 4 2 10 9 Brawler 21 | . . . . . . . 1 4 . 2 . . . . 1 . . . . 1 2 1 . . . . . . . 1 1 . 5 2 Duelist 22 | . . . . . . 1 1 1 . 1 1 . . 2 . 1 . . . 1 1 3 . . 1 . . . . 1 . . 4 3 Protector 5 | . . . . . . . . . . 1 . . . . . . . . . . . . . . 1 1 . . 1 . . . 1 . Researcher 1 | . . . . . . . . . . . . . . . . . . . . . . . . . . . . . . . . . . 1 Sentry 76 | . . . 10 . . . 12 9 3 6 2 1 . 5 9 . . . 1 3 3 3 . 2 2 . . 2 2 . . . 1 . Demolisher 2 | . . . . . . . . . . . . . . . . . . . . . . . . . 2 . . . . . . . . . Specialist 7 | . . . . . . . . 1 . . . . . . . . 1 . . . . . . . . . . . 2 . . . 3 . Hunter 42 | . . . . . . 1 2 1 . . 2 . . . 1 . 1 . 2 . . 1 . . 3 3 . 12 6 . 1 2 . 4 Programmer 80 | . . . . . . . . 1 . . 1 6 . 6 2 . 3 . 2 2 2 4 . . 3 2 . 4 2 4 3 4 18 11 Heavy 1 | . . . . . . . . . . . . . . . . . . . . . . . . . . . . . . . 1 . . . Behemoth 4 | . . . . . . . . . . . . . . . . . . . 1 1 . . . . . . . . 1 . . 1 . . Compactor 1 | . . . . . . . . . . . . . 1 . . . . . . . . . . . . . . . . . . . . . Hotshot 7 | . . . . . . . . . . . . . . . . . . . . . . . . . . . . . . . . . . 7 Decapitator 3 | . . . . . . . . . . . . . . . . . . . . . . . . . . . . . . . . . . 3 Executioner 1 | . . . . . . . . . . . . . . . . . . . . . . . . . . . . . . . 1 . . . V-Series 4 | . . . . . . . . . . . . . . . . . . . . . . . . . . . . . . . . . . 4 Subdweller 2 | . 2 . . . . . . . . . . . . . . . . . . . . . . . . . . . . . . . . . Zionite 7 | . . . . . 7 . . . . . . . . . . . . . . . . . . . . . . . . . . . . . Assembled 3 | . . . . . 3 . . . . . . . . . . . . . . . . . . . . . . . . . . . . . Thug 1 | . . 1 . . . . . . . . . . . . . . . . . . . . . . . . . . . . . . . . Best Kill Streak 27 | 4 6 3 8 5 6 7 9 9 4 4 3 5 1 9 4 4 7 . 5 5 5 8 . 3 4 8 . 7 7 27 3 8 9 6 Combat Bots Only 12 | . 6 3 5 4 3 6 6 8 3 3 3 3 1 8 4 2 7 . 5 3 5 7 . 3 4 7 . 5 7 12 3 2 9 6 Max Kills in Single Turn 5 | 1 3 2 3 2 2 2 4 4 2 3 2 2 1 3 2 2 3 . 3 2 3 2 . 1 2 2 . 3 3 5 4 2 2 3 Gunslinging 1 | . . 1 . . . . . . . . 1 1 . 1 . . . . . 1 1 . . . . 1 . . . . . . . . Exploded 4 | . 3 2 1 . 2 1 3 4 1 2 2 . . 2 . . 3 . 3 . . 2 . . 2 . . 2 3 3 3 . 2 2 Melee . | . . . . . . . . . . . . . . . . . . . . . . . . . . . . . . . . . . . Uniques/NPCs Destroyed 4 | . . . . . 4 . . . . . . . . . . . . . . . . . . . . . . . . . . . . . 8R-AWN (-9/Exiles) EX-BIN (-9/Exiles) EX-HEX (-9/Exiles) EX-DEC (-9/Exiles) Combat | -11 -10 -10 -9 -9 -9 -8 -8 -8 -8 -8 -8 -7 -7 -7 -7 -7 -7 -6 -6 -6 -6 -5 -5 -5 -5 -4 -4 -4 -4 -3 -3 -2 -2 -2 -------- Run | Yrd Mat Min Mat Min Exi Min Mat Gar Mat Sto Gar Fac Was Fac Gar Fac Gar Fac Gar Fac Gar Fac Was Fac Gar Fac Was Fac Gar Res Gar Res Qua Frg Hostile Shots Fired 3000 | . 58 31 118 10 53 81 98 169 19 35 26 95 . 135 203 11 60 . 125 86 117 84 . 24 103 123 . 238 201 128 63 84 185 237 Missed 856 | . 14 5 32 1 8 20 39 51 6 10 5 24 . 47 68 4 16 . 25 32 28 22 . 9 21 32 . 74 69 30 18 21 52 73 Intercepted 7 | . . . . . . . . . . . . . . . . . . . . . . . . . 7 . . . . . . . . . Deflected 5 | . . . . . . . . . . . . . . . . . . . . . . . . . 1 4 . . . . . . . . Hits 2144 | . 44 26 86 9 45 61 59 118 13 25 21 71 . 88 135 7 44 . 100 54 89 62 . 15 82 91 . 164 132 98 45 63 133 164 Melee 34 | . . . . . . . . . . 1 . . . . . . . . . 6 . 2 . . 7 . . . . 6 . . 6 6 Projectile 2110 | . 44 26 86 9 45 61 59 118 13 24 21 71 . 88 135 7 44 . 100 48 89 60 . 15 75 91 . 164 132 92 45 63 127 158 AOE 11 | . . . . . . . . . . . . . . . . . . . . . . . . . 8 . . . . . 3 . . . Critical Strikes 128 | . . . 4 . 26 5 3 4 2 2 1 1 . 2 3 . 2 . 3 . 2 6 . . 5 6 . 6 4 8 2 5 9 17 Actively Blocked 1 | . . . . . . . . . . . . . . . . . . . . . . . . . . . . . . . . . . 1 Part Disruptions 10 | . . . . . . . . . . . . . . . . . . . . . . . . . . . . . 1 1 1 . 3 4 Damage Taken 41284 | . 599 268 900 51 692 639 781 1580 152 426 344 843 . 1413 1536 56 723 5 1756 960 1162 1858 . 379 1878 1587 . 3307 2355 2211 1242 2006 3409 6166 Core 4303 | . 84 46 131 . 91 105 77 247 8 16 . 60 . 194 250 17 77 . 104 111 115 342 . 24 144 151 . 196 339 92 127 281 314 560 Absorbed by Shields 749 | . . . 45 21 119 154 . 8 . . . . . . . . 4 . . . . . . . . . . . 18 . . . . 380 Reduced by Siege Mode 260 | . . . . . . . . . . . . . . . . . . . 98 15 . . . 14 4 . . . . 105 24 . . . Redirected to Shielding 138 | . 6 9 2 . . . . . . . . . . . . . . . . . . . . . . . . . . . . . . 121 Ignored by Resistances 91 | . . . . . . . . . . . . . . . . . . . . . . . . . . . . 91 . . . . . . Regen/Repaired (Parts) 1550 | . 16 . 84 . . . . . . . . 114 . 191 338 . . . . . . . . . . . . . . . . . 303 504 Core Remaining (%) 49 | 100 . 48 . . . 18 . . . . 36 . . . . . 14 . . . 61 . . . 49 . . . 40 . 83 . . . Volleys Fired 2193 | 20 78 19 86 6 76 41 78 101 18 57 27 44 10 62 137 21 96 4 70 35 108 84 10 22 94 83 11 105 105 55 91 69 113 157 Largest 4 | 2 2 2 3 3 3 3 4 4 4 4 4 4 4 4 4 4 4 1 4 4 4 4 1 4 4 4 3 4 4 3 4 4 3 2 Hottest 500 | 70 100 80 159 99 79 99 260 187 239 168 101 320 320 320 270 166 117 7 136 141 211 222 113 155 196 276 195 312 250 250 308 250 250 500 Shots Fired 4931 | 40 140 36 244 18 140 117 261 269 45 161 78 164 16 221 310 42 194 4 161 104 251 224 10 48 212 179 17 233 239 97 150 131 200 175 Gun 2917 | 40 130 34 120 . 116 . 108 109 13 131 72 141 9 204 156 15 107 . 130 93 214 165 . 19 146 119 9 95 194 42 67 89 27 3 Cannon 1516 | . . . 119 18 6 114 145 145 23 23 . 22 . 8 91 17 30 . 24 . 33 47 3 28 41 29 . 117 17 44 50 16 156 150 Launcher 106 | . 6 2 5 . 18 3 8 15 3 3 3 . . 4 . . 2 . 4 . . 2 . . 1 . . 9 12 4 2 . . . Special 392 | . 4 . . . . . . . 6 4 3 1 7 5 63 10 55 4 3 11 4 10 7 1 24 31 8 12 16 7 31 26 17 22 Kinetic 2944 | 20 59 14 144 18 122 114 110 237 22 131 72 137 . . 148 15 107 . 130 93 213 181 1 33 150 52 . 124 150 67 6 89 138 47 Thermal 1318 | 20 69 . 95 . . . 92 17 14 23 . 26 9 212 130 17 70 . 24 . 33 31 2 5 47 96 9 88 31 3 79 2 10 64 Explosive 71 | . 6 2 5 . 18 3 4 7 3 . . . . 4 . . 2 . 4 . . . . . 1 . . . 6 4 2 . . . Electromagnetic 297 | . 6 20 . . . . 55 8 . 3 3 . . . . . . . . . 1 2 . 9 3 . . 9 39 16 32 14 35 42 Robot Hit Streak 35 | 5 19 7 12 4 13 9 18 19 11 24 10 19 22 34 27 10 34 6 17 15 22 35 8 6 15 29 11 11 19 28 13 24 11 17 Robot Miss Streak 13 | 4 5 2 3 3 5 8 3 4 4 3 2 2 2 3 4 3 2 . 3 4 5 4 . 3 4 7 1 4 7 2 2 2 6 13 Penetration Max 2 | . . . . . . . . . . . . . . . . . 1 . 1 1 2 1 . 1 . 1 . 1 1 1 . 1 . . Secondary Targets 40 | . . 2 . . . . . . . . 4 1 . 4 . . 2 . 3 2 9 1 . . . 7 . . 1 . 1 3 . . Max Gunslinging Chain 2 | . . 1 . . . . . . . . 1 1 . 1 . . 1 . 1 1 2 1 . . . 2 . . 1 . 1 1 . . Autonomous 51 | . . . . . . . 51 . . . . . . . . . . . . . . . . . . . . . . . . . . . Shots Hit Robots 3069 | 19 78 25 128 6 85 52 151 151 26 100 48 103 14 172 216 24 148 4 116 73 144 132 6 26 135 112 15 119 137 69 89 104 124 118 Core Hits 1700 | 9 41 14 76 6 42 29 88 76 25 53 23 48 5 142 84 10 64 . 50 36 75 116 . 15 69 35 2 75 80 66 23 32 74 117 Critical Kills 30 | . 1 . . . . . 1 . . . . . . . 2 . . . 7 4 7 . . . . 1 . 3 1 . . 1 1 1 Critical Parts Destroyed 37 | . 1 . 1 . . . . 1 . . . 1 . . . . . . 12 7 8 1 . . 1 1 . . 2 . . . 1 . Critical Strikes 126 | . 7 . 2 1 1 2 8 7 . . . 1 . . 6 . 4 . 25 12 15 1 . . 3 2 . 7 3 7 . 3 7 2 Burn 7 | . 5 . . . . . 2 . . . . . . . . . . . . . . . . . . . . . . . . . . . Meltdown 5 | . . . . . . . 1 . . . . . . . . . . . 2 . . . . . . 1 . . . . . . . 1 Destroy 72 | . 2 . 1 . 1 . . 1 . . . 1 . . 2 . . . 23 12 15 1 . . 1 1 . 3 3 . . 3 2 . Blast 30 | . . . 1 1 . 2 2 6 . . . . . . . . . . . . . . . . 2 . . 4 . 6 . . 5 1 Corrupt 4 | . . . . . . . 3 . . . . . . . . . . . . . . . . . . . . . . 1 . . . . Sever 8 | . . . . . . . . . . . . . . . 4 . 4 . . . . . . . . . . . . . . . . . Melee Attacks 54 | . . . 1 . 7 . . 10 . 2 . 2 . . 6 . 8 . . . . . . . 8 . . . . 3 7 . . . Impact 18 | . . . 1 . 3 . . . . . . . . . 6 . 8 . . . . . . . . . . . . . . . . . Slashing 24 | . . . . . . . . 10 . 2 . 2 . . . . . . . . . . . . . . . . . 3 7 . . . Piercing 8 | . . . . . . . . . . . . . . . . . . . . . . . . . 8 . . . . . . . . . Sneak Attacks 4 | . . . . . 4 . . . . . . . . . . . . . . . . . . . . . . . . . . . . . Combat Hostiles . | . . . . . . . . . . . . . . . . . . . . . . . . . . . . . . . . . . . Follow-up Attacks . | . . . . . . . . . . . . . . . . . . . . . . . . . . . . . . . . . . . Damage Inflicted 88344 | 194 1580 523 2799 163 1890 1376 4020 4685 709 2198 944 2008 300 4804 3568 458 2992 . 2038 1642 3461 3884 . 698 3249 2563 275 4709 4331 4939 2704 2891 7207 8542 Guns 39843 | 192 800 287 865 . 1215 . 1627 992 145 1657 820 1525 300 3748 1825 189 1757 . 776 1030 3096 2814 . 286 1911 2288 275 1562 2536 971 1425 2395 464 70 Cannons 28051 | . . . 1548 146 44 1102 1484 2099 460 250 . 470 . 113 1438 269 454 . 612 . 365 487 . 365 885 264 . 2335 203 2407 844 392 5137 3878 Explosions 18708 | . 725 220 357 . 631 240 868 1482 99 260 124 . . 915 . . 358 . 650 406 . 571 . . 334 . . 786 1558 1561 435 99 1531 4498 Melee 112 | . . . . . . . . 112 . . . . . . . . . . . . . . . . . . . . . . . . . . Ramming 749 | 2 55 16 29 17 . 34 41 . 5 31 . 13 . 28 . . . . . 206 . 12 . 47 . 11 . 26 . . . 5 75 96 Kinetic 43284 | 55 260 91 1161 146 1259 1102 1047 3027 396 1657 820 1445 . . 1658 189 1757 . 776 1030 3096 3253 . 530 2369 967 . 2128 1983 2816 32 2395 4412 1427 Thermal 25963 | 137 638 . 1252 . . . 998 88 209 285 . 550 300 4173 1910 269 877 . 612 406 365 48 . . 580 1585 275 1905 772 475 1559 150 845 4700 Explosive 8449 | . 601 220 357 . 631 240 594 940 99 . . . . 603 . . 358 . 650 . . 321 . . 237 . . . 803 1191 435 . 169 . Electromagnetic 9787 | . 26 196 . . . . 1340 518 . 225 124 . . . . . . . . . . 250 . 121 63 . . 650 773 457 678 341 1706 2319 Impact . | . . . . . . . . . . . . . . . . . . . . . . . . . . . . . . . . . . . Slashing 112 | . . . . . . . . 112 . . . . . . . . . . . . . . . . . . . . . . . . . . Piercing . | . . . . . . . . . . . . . . . . . . . . . . . . . . . . . . . . . . . Highest Corruption 102 | . . 8 . . . . . 1 1 2 2 5 23 23 13 13 23 . 1 1 1 4 26 28 31 1 4 5 32 17 37 4 35 102 Average Corruption 13 | . . 8 . . . . . 1 1 1 2 4 16 11 12 13 13 . 1 1 1 1 17 27 30 1 1 4 23 9 19 2 16 62 Corruption Purged 14 | . . . . . . . . . . . . . . 14 . . . . . . . . . . . . . . . . . . . . Corruption Blocked 15 | . . . . . . . . . . . . . . . . . . . . . . . . . . . 15 . . . . . . . Effects 1116 | . . 3 . . . . . . 4 24 16 24 9 124 84 33 80 . 7 14 8 . 13 29 128 6 2 29 97 9 93 11 129 140 Message Errors 251 | . . . . . . . . . 1 7 3 6 3 22 20 12 20 . . 5 2 . 3 7 31 4 1 5 22 3 19 1 33 21 Matter Fused 244 | . . 2 . . . . . . 2 5 3 3 1 41 16 8 26 . 1 2 1 . 3 5 23 . . 8 14 3 28 2 26 21 Heat Flow Errors 113 | . . 1 . . . . . . . 1 2 . 3 12 11 . 6 . 2 1 1 . 2 2 11 . . 4 7 . 13 4 17 13 Energy Discharges 128 | . . . . . . . . . . 3 4 5 . 13 6 3 9 . 1 3 1 . 1 5 20 1 . 4 18 2 5 2 13 9 Parts Rejected 18 | . . . . . . . . . . . . 1 1 3 2 1 1 . . . . . . . . . 1 1 1 . . . 2 4 Parts Fused 18 | . . . . . . . . . . 1 . 1 . 1 1 . 2 . . . . . . . 2 . . . 2 . 1 . 1 6 Data Loss (minor) 123 | . . . . . . . . . . 4 3 2 1 11 9 4 9 . 2 1 . . 2 3 12 . . 5 12 . 14 1 13 15 Data Loss (major) 54 | . . . . . . . . . . 1 1 3 . 7 3 2 1 . . 2 1 . . 3 7 . . . 6 . 8 . 3 6 Misfires 43 | . . . . . . . . . 1 1 . 1 . 5 4 . 1 . . . 1 . . 4 4 . . . 3 . 2 . 8 8 Alerts 28 | . . . . . . . . . . . . 1 . 3 5 . 2 . 1 . 1 . 1 . 2 . . 1 5 1 1 . 3 1 Misdirections 16 | . . . . . . . . . . . . . . 1 . . 1 . . . . . 1 . 2 . . . 1 . 1 . 3 6 Weapon Failures 80 | . . . . . . . . . . 1 . 1 . 5 7 3 2 . . . . . . . 14 1 . 1 6 . 1 1 7 30 Overload Shots 4 | . . . . . . . . . . . . . . . . 4 . . . . . . . . . . . . . . . . . . Overflow Damage 2059 | . 125 8 3 3 16 22 6 52 2 . . 32 . 86 52 17 . . 78 104 . 27 . . 62 . . 116 7 426 61 1 641 112 Projectiles 1247 | . . . . 3 . . 6 3 2 . . 32 . . 52 17 . . . . . 3 . . 56 . . 69 . 339 17 . 608 40 Explosions 697 | . 125 8 3 . 16 22 . 20 . . . . . 86 . . . . 78 55 . 24 . . 6 . . 47 7 87 44 1 14 54 Melee 115 | . . . . . . . . 29 . . . . . . . . . . . 49 . . . . . . . . . . . . 19 18 Knockbacks 101 | . 1 1 5 2 1 11 8 9 5 . . . . . . . . . . 3 . 5 . . 5 . . 8 . 7 . . 24 6 Impact 7 | . 1 1 1 . . 1 . . . . . . . . . . . . . 3 . . . . . . . . . . . . . . Kinetic 87 | . . . 3 2 1 8 6 9 5 . . . . . . . . . . . . 4 . . 5 . . 8 . 7 . . 23 6 Secondary 7 | . . . 1 . . 2 2 . . . . . . . . . . . . . . 1 . . . . . . . . . . 1 . Self-Inflicted Damage 1481 | . 43 . 9 . . . 29 36 2 . . . . 138 . . . . . 215 . . . . 61 . . 93 76 23 . . 186 570 Shots 81 | . 3 . 1 . . . 1 2 . . . . . 2 . . . . . 3 . . . . 1 . . 4 3 3 . . 5 53 Rammed 52 | 1 9 5 5 3 . 3 5 . 1 7 . 1 . 2 . . . . . 6 . 1 . 1 . . . . . . . 1 . 1 Targets Rammed 66 | 1 9 5 6 3 . 3 7 . 1 7 . 2 . 3 . . . . . 7 . 1 . 1 . 1 . 2 . . . 1 3 3 Kicked 8 | . . . . . . . . . . . . . . . . . . . . . . . . . . 1 . 2 . . . . 3 2 Crushed 6 | . . . 1 . . . 2 . . . . 1 . 1 . . . . . 1 . . . . . . . . . . . . . . Highest Temperature 629 | 60 140 166 456 195 120 339 411 288 315 324 141 353 440 312 291 204 241 . 354 351 348 188 84 189 194 188 . 326 404 289 265 410 486 629 Average Temperature 85 | 26 35 73 66 100 31 136 87 79 113 76 45 78 168 101 55 73 54 . 116 156 71 79 43 70 81 48 . 76 93 88 88 102 113 179 Received Heat Transfer 6662 | . 132 78 315 . . 276 279 495 81 189 126 201 . 456 405 21 153 . . 135 297 316 . 84 90 168 . 198 196 327 18 625 288 713 Effects 27 | . . . 2 . . . . 6 . . . . . . . . . . 2 1 . . . . . . . . 2 . 1 1 4 8 Shutdowns 4 | . . . . . . . . . . . . . . . . . . . 1 . . . . . . . . . . . . 1 . 2 Energy Bleed 6 | . . . . . . . . 1 . . . . . . . . . . . . . . . . . . . . 2 . 1 . . 2 Interference 9 | . . . . . . . . 5 . . . . . . . . . . 1 1 . . . . . . . . . . . . 1 1 Matter Decay 1 | . . . . . . . . . . . . . . . . . . . . . . . . . . . . . . . . . . 1 Short Circuit 2 | . . . 1 . . . . . . . . . . . . . . . . . . . . . . . . . . . . . . 1 Damage (minor) 1 | . . . 1 . . . . . . . . . . . . . . . . . . . . . . . . . . . . . . . Damage (major) 3 | . . . . . . . . . . . . . . . . . . . . . . . . . . . . . . . . . 3 . Damage (core) 1 | . . . . . . . . . . . . . . . . . . . . . . . . . . . . . . . . . . 1 Siege Activations 11 | . . . . . . . . . . . . . . . . . . . 5 1 . . . 1 1 . . . 1 1 1 . . . Total Turns 225 | . . . . . . . . . . . . . . . . . . . 85 15 . . . 10 7 . . . 12 64 32 . . . Longest Duration 64 | . . . . . . . . . . . . . . . . . . . 51 15 . . . 10 7 . . . 12 64 32 . . . Martial Activations . | . . . . . . . . . . . . . . . . . . . . . . . . . . . . . . . . . . . Shielding Activations 5 | . . . . . . . . . . . . . . . . . . . . . . . . . 2 2 . . . . . . . 1 Total Turns 104 | . . . . . . . . . . . . . . . . . . . . . . . . . 42 40 . . . . . . . 22 Longest Duration 24 | . . . . . . . . . . . . . . . . . . . . . . . . . 24 22 . . . . . . . 22 Robots Disrupted 2 | . . . . . . . 1 . . . . . . . . . . . . . . . . . . . . . . . 1 . . . Combat Hostiles 2 | . . . . . . . 1 . . . . . . . . . . . . . . . . . . . . . . . 1 . . . Robots Corrupted 38 | . . 1 . . . . 2 1 . . . . . . . . . . . 1 . . . 1 . . . 2 6 2 3 1 9 9 Combat Hostiles 34 | . . 1 . . . . 2 1 . . . . . . . . . . . . . . . 1 . . . 2 6 2 3 1 7 8 Parts Fried 75 | . . 1 . . . . 6 4 . . . . . . . . . . . 3 . 1 . . . . . 11 8 2 8 1 9 21 Impact Corruptions 7 | . . . . . . 1 . . . . . . . . . . . . . 3 . . . . . . . . . . . . 1 2 Robots Melted 41 | . 1 . . . . . 1 . . . . . 1 3 . . . . 2 . . . . . . 1 . . 1 2 1 1 7 20 Combat Hostiles 34 | . 1 . . . . . . . . . . . 1 3 . . . . . . . . . . . 1 . . 1 1 1 1 7 17 Parts Melted 184 | . 4 . 2 . . . 6 2 . . . . 4 25 4 3 2 . 2 . . . . . . 7 . 4 4 12 1 4 27 71 Heat Transferred 59199 | 407 1987 . 2257 . . . 2037 150 324 437 . 837 675 8648 2875 322 1995 . 950 300 333 37 . . 840 1794 333 2198 1556 2400 1628 720 3603 19556 Parts Sabotaged 5 | . . . . . . . . . . . . . . . . . . . . . . . . . . . . . . . . . 4 1 Parts Stolen . | . . . . . . . . . . . . . . . . . . . . . . . . . . . . . . . . . . . Parts Stripped . | . . . . . . . . . . . . . . . . . . . . . . . . . . . . . . . . . . . Power Chain Reactions 12 | . 1 . . . . . 2 1 . 1 1 . . . . . . . . . . . . . 1 . . 4 1 . . . . . Latent Energy Used 909 | . . . . . . . . . . . . . . . . . . . . . . . . . . . . . . . . . 309 600 LE Corruption 14 | . . . . . . . . . . . . . . . . . . . . . . . . . . . . . . . . . 5 9 Alert | -11 -10 -10 -9 -9 -9 -8 -8 -8 -8 -8 -8 -7 -7 -7 -7 -7 -7 -6 -6 -6 -6 -5 -5 -5 -5 -4 -4 -4 -4 -3 -3 -2 -2 -2 ------- Run | Yrd Mat Min Mat Min Exi Min Mat Gar Mat Sto Gar Fac Was Fac Gar Fac Gar Fac Gar Fac Gar Fac Was Fac Gar Fac Was Fac Gar Res Gar Res Qua Frg Maximum Alert Level 5 | . 1 . 2 1 . . 3 5 4 2 3 2 . 3 5 3 5 4 5 4 5 5 2 1 4 3 . 2 5 4 5 3 3 3 Low Security (%) 25 | 100 83 100 35 85 . 100 24 . . 55 . . 100 54 . . . . . . . . . 16 9 27 100 69 . . . . 1 . Level 1 18 | . 16 . 17 14 . . 51 . . 43 18 86 . 14 . . . . . . . . . 83 22 67 . 23 2 . . . 44 3 Level 2 17 | . . . 46 . . . 21 5 . . 38 13 . 27 16 . 2 . . 44 . . 100 . 22 4 . 7 11 . . 81 44 58 Level 3 15 | . . . . . . . 2 21 77 . 42 . . 4 24 100 13 37 23 34 16 . . . 40 . . . 30 59 26 18 10 38 Level 4 16 | . . . . . . . . 44 22 . . . . . 47 . 72 62 46 21 28 90 . . 3 . . . 44 40 45 . . . Level 5 6 | . . . . . . . . 28 . . . . . . 11 . 11 . 29 . 55 9 . . . . . . 10 . 28 . . . High Security . | . . . . . . . . . . . . . . . . . . . . . . . . . . . . . . . . . . . Max Security . | . . . . . . . . . . . . . . . . . . . . . . . . . . . . . . . . . . . Peak Influence 2466 | 10 249 175 682 265 . 141 771 2456 1201 412 1033 541 105 739 1701 961 1860 1237 1829 1156 2466 1745 599 331 1214 747 119 428 1779 1385 1834 1003 829 1040 Initial 1294 | . . 95 . 265 . . 9 500 1197 384 213 541 105 10 515 892 657 976 781 959 795 1294 599 331 115 637 119 27 285 1000 975 1003 308 463 Average 649 | . 83 26 320 89 . 47 309 1367 912 192 688 350 60 256 1126 869 1230 1082 1394 788 1706 1382 540 244 594 287 82 133 1138 1118 1375 655 443 663 Influence Increases 29002 | 30 786 204 1452 97 . 437 1428 2016 396 823 980 547 . 1261 1356 497 1273 331 1108 1130 1711 955 4 148 1219 623 . 1160 1644 757 1199 347 1473 1610 Destroy 0b10 Robot/C 14600 | . 360 160 800 80 . 320 840 1100 180 500 500 360 . 860 640 280 660 60 500 360 820 520 . 80 440 300 . 540 640 440 340 180 840 900 Destroy 0b10 Robot/NC 1020 | 30 35 . 120 5 . 10 110 20 15 55 . 35 . 40 20 30 20 10 20 55 10 55 . 5 10 25 . 45 15 120 . 35 15 55 Destroy Leader 2298 | . 86 30 232 10 . 60 228 20 60 106 40 106 . 194 40 50 40 10 60 122 60 102 . 20 40 50 . 120 60 82 20 30 130 90 Allied During Kill 964 | . . . . . . . . 60 10 9 219 8 . . 19 94 104 37 45 27 72 8 . 3 30 . . 7 . 7 117 6 3 79 Successful Hack 373 | . 34 . 47 . . . 12 12 . 34 14 16 . 15 7 . 14 . 14 30 7 16 . 12 28 . . 11 . . 12 . 14 24 Select Force Hacks 90 | . 30 . 60 . . . . . . . . . . . . . . . . . . . . . . . . . . . . . . . Disable Machine 1710 | . 45 . 75 . . . 75 30 . 75 . . . 45 . 30 30 180 15 345 . 120 . . 45 30 . 105 75 . 60 30 135 165 Anti-Garrison Action 4200 | . . . . . . . . 650 . . 200 . . . 600 . 300 . 200 . 500 . . . 500 150 . . 600 . 500 . . . Destroy Structure 2652 | . 76 14 43 2 . 17 43 124 26 14 7 7 . 47 15 13 90 34 119 191 137 104 4 28 81 68 . 302 209 108 150 51 291 237 Partial Spotted 75 | . . . . . . . . . . 15 . . . . . . . . . . . . . . . . . 15 15 . . 15 . 15 Lose Combat Pursuer 1020 | . 120 . 75 . . 30 120 . 105 15 . 15 . 60 15 . 15 . 135 . 105 30 . . 45 . . 15 30 . . . 45 45 Influence Decreases 27935 | 30 541 449 771 778 . 413 682 330 1940 1406 276 1279 286 540 391 1259 352 1074 396 1823 381 1708 1244 456 170 1496 302 791 273 1235 716 1582 1197 1368 Entered New Map 13091 | . . 150 . 416 . . 15 270 1259 528 116 492 196 5 221 809 282 884 336 870 341 1172 1114 142 50 577 222 12 123 779 326 781 241 362 Time Decay 9714 | 30 521 279 621 362 . 393 667 . 286 678 . 577 90 335 . 310 . 130 . 538 . 416 130 294 . 474 80 499 . 326 . 386 706 586 Lost Part 900 | . 20 20 . . . 20 . 60 . . . 20 . 20 10 . 10 . 20 10 . 50 . . 60 20 . 70 50 50 20 40 30 300 Lost Ally 1880 | . . . . . . . . . 20 50 160 40 . 30 160 140 60 60 40 30 40 70 . 20 60 150 . 60 100 80 220 100 70 120 Purge Threat 2350 | . . . 150 . . . . . 375 150 . 150 . 150 . . . . . 375 . . . . . 275 . 150 . . 150 275 150 . Squads Dispatched 118 | . 4 . 8 . . . 10 . 1 3 . 5 . 11 . 5 . . . 7 . 10 . 2 . 5 . 11 . 7 . 4 15 10 Investigation 15 | . 1 . 3 . . . . . 1 . . 2 . 3 . . . . . 1 . . . 1 . . . 1 . 1 . 1 . . Extermination 31 | . . . . . . . . . . . . 3 . 6 . 1 . . . 2 . 2 . 1 . 1 . 3 . 1 . 1 7 3 Reinforcement 24 | . 3 . 3 . . . 3 . . 1 . . . 2 . 2 . . . 1 . 1 . . . 1 . 2 . 2 . 1 1 1 Assault 27 | . . . 2 . . . 1 . . 2 . . . . . 1 . . . . . 6 . . . 2 . . . . . 1 6 6 Garrison 21 | . . . . . . . 6 . . . . . . . . 1 . . . 3 . 1 . . . 1 . 5 . 3 . . 1 . Intercept . | . . . . . . . . . . . . . . . . . . . . . . . . . . . . . . . . . . . Searches Triggered . | . . . . . . . . . . . . . . . . . . . . . . . . . . . . . . . . . . . Construction Impeded 2 | . . . . . . . . . . . . . . . . . . . . . . . . . . . . 1 . 1 . . . . Haulers Reinforced 4 | . . . . . . . . . . . . . . . . 2 . . . . . 1 . . . . . . . 1 . . . . Active Scanning Responses . | . . . . . . . . . . . . . . . . . . . . . . . . . . . . . . . . . . . Cargo Convoy Interrupts 1 | . . . . . . . . . . . . . . . . . . . . . . . . . . . . 1 . . . . . . Alert ID Control Effect 58 | . . . . . . . . . . . . . . . . . . . 1 . . . . . 5 1 . 11 2 . 7 5 2 24 Stealth | -11 -10 -10 -9 -9 -9 -8 -8 -8 -8 -8 -8 -7 -7 -7 -7 -7 -7 -6 -6 -6 -6 -5 -5 -5 -5 -4 -4 -4 -4 -3 -3 -2 -2 -2 --------- Run | Yrd Mat Min Mat Min Exi Min Mat Gar Mat Sto Gar Fac Was Fac Gar Fac Gar Fac Gar Fac Gar Fac Was Fac Gar Fac Was Fac Gar Res Gar Res Qua Frg Distress Signals 30 | . 1 . 1 . . . 3 . . 2 . 1 . 1 . . . 1 2 1 . 3 . . . . . 4 . 2 . 1 2 5 Communications Jammed 228 | . . . . . . . . . . . . . . . . . . . . . . 48 . 1 25 36 . 11 . . . 10 64 33 Distress Signals 224 | . . . . . . . . . . . . . . . . . . . . . . 44 . 1 25 36 . 11 . . . 10 64 33 Times Spotted 1046 | . 48 8 58 4 34 17 66 50 14 29 22 22 6 55 39 16 31 2 26 16 43 35 5 8 31 28 6 46 36 35 33 28 73 76 Peak Tracking Total 9 | . 7 3 5 4 9 4 7 7 3 3 5 3 2 5 5 4 6 1 5 2 4 6 2 4 4 6 2 5 6 8 6 6 8 9 Tactical Retreats 61 | . 8 . 4 . 6 2 4 . 5 1 . 1 . 3 1 . 1 . 7 . 7 2 . . 2 . . 1 1 . . . 2 3 Traps | -11 -10 -10 -9 -9 -9 -8 -8 -8 -8 -8 -8 -7 -7 -7 -7 -7 -7 -6 -6 -6 -6 -5 -5 -5 -5 -4 -4 -4 -4 -3 -3 -2 -2 -2 ------- Run | Yrd Mat Min Mat Min Exi Min Mat Gar Mat Sto Gar Fac Was Fac Gar Fac Gar Fac Gar Fac Gar Fac Was Fac Gar Fac Was Fac Gar Res Gar Res Qua Frg Traps Triggered 77 | . 2 . 1 . . . . 6 . 3 4 3 . 4 7 . 9 . 2 . 7 2 . 1 6 2 . 1 10 . 4 . 3 . Indirectly 5 | . . . . . . . . . . 2 1 . . . . . . . . . . . . . . . . . 2 . . . . . Trap Hack Attempts . | . . . . . . . . . . . . . . . . . . . . . . . . . . . . . . . . . . . Triggered . | . . . . . . . . . . . . . . . . . . . . . . . . . . . . . . . . . . . Disarmed . | . . . . . . . . . . . . . . . . . . . . . . . . . . . . . . . . . . . Reprogrammed . | . . . . . . . . . . . . . . . . . . . . . . . . . . . . . . . . . . . Reused . | . . . . . . . . . . . . . . . . . . . . . . . . . . . . . . . . . . . Traps Extracted . | . . . . . . . . . . . . . . . . . . . . . . . . . . . . . . . . . . . Installed . | . . . . . . . . . . . . . . . . . . . . . . . . . . . . . . . . . . . Triggered . | . . . . . . . . . . . . . . . . . . . . . . . . . . . . . . . . . . . Machines | -11 -10 -10 -9 -9 -9 -8 -8 -8 -8 -8 -8 -7 -7 -7 -7 -7 -7 -6 -6 -6 -6 -5 -5 -5 -5 -4 -4 -4 -4 -3 -3 -2 -2 -2 ---------- Run | Yrd Mat Min Mat Min Exi Min Mat Gar Mat Sto Gar Fac Was Fac Gar Fac Gar Fac Gar Fac Gar Fac Was Fac Gar Fac Was Fac Gar Res Gar Res Qua Frg Machines Disabled 164 | . 3 . 5 . 8 . 5 5 . 5 3 . . 3 5 2 4 12 5 23 6 8 . . 9 3 . 7 11 . 9 2 9 12 Max in Single Turn 7 | . 2 . 1 . 3 . 2 1 . 1 1 . . 3 1 . 1 . 1 7 1 6 . . 1 1 . 2 1 . 1 1 2 2 Garrison Access 8 | . . . . . . . . . . . . 2 . 1 . . . . . . . 1 . . . 1 . 1 . . . 1 1 . Garrison Relay 29 | . . . . . . . . 2 . . 2 . . . 4 . 2 . 2 . 4 . . . 4 . . . 5 . 4 . . . Phase Generator 3 | . . . . . . . . . . . 1 . . . 1 . . . . . . . . . . . . . 1 . . . . . Machines Repaired . | . . . . . . . . . . . . . . . . . . . . . . . . . . . . . . . . . . . Machines Dismantled 10 | . . . . . . . . 1 . . 1 . . . 1 . 1 . . . . . . . 1 . . . 5 . . . . . Machines Sabotaged . | . . . . . . . . . . . . . . . . . . . . . . . . . . . . . . . . . . . Overloaded Fab Kills . | . . . . . . . . . . . . . . . . . . . . . . . . . . . . . . . . . . . Hacking | -11 -10 -10 -9 -9 -9 -8 -8 -8 -8 -8 -8 -7 -7 -7 -7 -7 -7 -6 -6 -6 -6 -5 -5 -5 -5 -4 -4 -4 -4 -3 -3 -2 -2 -2 --------- Run | Yrd Mat Min Mat Min Exi Min Mat Gar Mat Sto Gar Fac Was Fac Gar Fac Gar Fac Gar Fac Gar Fac Was Fac Gar Fac Was Fac Gar Res Gar Res Qua Frg Machines Accessed 126 | . 6 1 14 . 2 . 6 2 1 11 3 10 . 11 4 2 3 2 1 6 1 3 . 5 3 2 . 9 2 2 1 4 8 1 Terminals 83 | . 4 . 9 . . . 3 2 . 10 3 6 . 4 4 1 3 . 1 4 1 1 . 2 3 2 . 5 2 1 1 2 8 1 Fabricators 8 | . . . . . . . . . . . . . . 4 . . . . . 1 . 1 . . . . . 1 . . . 1 . . Repair Stations 4 | . 1 . 1 . . . . . . . . 1 . 1 . . . . . . . . . . . . . . . . . . . . Recycling Units 6 | . 1 . 2 . . . . . . . . . . . . . . 1 . . . . . 1 . . . 1 . . . . . . Scanalyzers 7 | . . . 2 . . . 2 . 1 . . 1 . . . . . . . . . . . 1 . . . . . . . . . . Garrison Access 15 | . . . . . . . 1 . . 1 . 2 . 2 . 1 . 1 . 1 . 1 . 1 . . . 2 . 1 . 1 . . Total Hacks 300 | . 19 1 40 . 2 . 19 7 5 28 7 27 . 23 11 2 5 2 3 13 1 6 . 8 6 3 . 24 7 3 2 8 16 2 Successful 130 | . 11 1 25 . 2 . 10 1 2 15 2 10 . 11 1 1 1 2 1 5 1 2 . 3 2 . . 10 . 1 1 4 4 1 Failed 170 | . 8 . 15 . . . 9 6 3 13 5 17 . 12 10 1 4 . 2 8 . 4 . 5 4 3 . 14 7 2 1 4 12 1 Catastrophic 41 | . 1 . 4 . . . 3 1 1 2 1 2 . 3 . . 1 . . 4 . . . 2 2 1 . 3 2 1 . 2 5 . Database Lockouts . | . . . . . . . . . . . . . . . . . . . . . . . . . . . . . . . . . . . Manual 96 | . 16 . 19 . 1 . 6 1 . 11 . 10 . 4 . . . . 3 1 . 1 . 2 2 . . 15 . . 1 1 2 . Terminals 214 | . 16 . 24 . . . 9 7 . 27 7 21 . 8 11 1 5 . 3 9 1 3 . 2 6 3 . 17 7 2 2 5 16 2 Fabricators 20 | . . . . . . . . . . . . . . 11 . . . . . 3 . 2 . . . . . 2 . . . 2 . . Repair Stations 7 | . 2 . 2 . . . . . . . . 1 . 2 . . . . . . . . . . . . . . . . . . . . Recycling Units 9 | . 1 . 2 . . . . . . . . . . . . . . 1 . . . . . 2 . . . 3 . . . . . . Scanalyzers 32 | . . . 12 . . . 9 . 5 . . 3 . . . . . . . . . . . 3 . . . . . . . . . . Garrison Access 15 | . . . . . . . 1 . . 1 . 2 . 2 . 1 . 1 . 1 . 1 . 1 . . . 2 . 1 . 1 . . Terminal Hacks 56 | . 5 1 6 . 2 . 3 1 . 9 2 7 . 2 1 . 1 . 1 2 1 1 . . 1 . . 3 . . 1 1 4 1 Record 2 | . . . . . 1 . . . . . . . . . . . . . . . . . . . . . . . . . . . 1 . Part Schematic 4 | . 3 . . . . . . . . . . 1 . . . . . . . . . . . . . . . . . . . . . . Robot Schematic 1 | . 1 . . . . . . . . . . . . . . . . . . . . . . . . . . . . . . . . . Prototype ID Bank 5 | . . . 1 . . . . . . 1 . 2 . . . . . . . . . . . . . . . . . . . . . 1 Open Door 7 | . . 1 . . . . . . . 3 . . . . 1 . . . . . 1 . . . . . . . . . . 1 . . Branch Access Points 1 | . . . . . . . 1 . . . . . . . . . . . . . . . . . . . . . . . . . . . Emergency Access Points 6 | . . . 1 . . . . 1 . . 1 . . . . . 1 . . 1 . . . . . . . . . . . . 1 . Terminal Index 2 | . . . . . . . 1 . . 1 . . . . . . . . . . . . . . . . . . . . . . . . Fabricator Index 1 | . . . . . . . . . . . . . . . . . . . . . . 1 . . . . . . . . . . . . Recycling Unit Index 1 | . . . . . . . . . . . . . . . . . . . . . . . . . . . . 1 . . . . . . Garrison Index 1 | . . . . . . . . . . 1 . . . . . . . . . . . . . . . . . . . . . . . . Alert Level 1 | . . . . . . . 1 . . . . . . . . . . . . . . . . . . . . . . . . . . . Unreport Threat 6 | . . . 1 . . . . . . 1 . 1 . 1 . . . . . . . . . . . . . 1 . . . . 1 . Locate Traps 8 | . 1 . 1 . . . . . . 2 . 2 . 1 . . . . . . . . . . . . . 1 . . . . . . Hauler Manifests 1 | . . . 1 . . . . . . . . . . . . . . . . . . . . . . . . . . . . . . . Registered Components 2 | . . . . . . . . . . . . 1 . . . . . . . . . . . . . . . . . . . . 1 . Zone Layout 2 | . . . 1 . . . . . . . . . . . . . . . . 1 . . . . . . . . . . . . . . Garrison Registry 4 | . . . . . . . . . . . 1 . . . . . . . 1 . . . . . 1 . . . . . 1 . . . Proto ID Catalog 1 | . . . . . 1 . . . . . . . . . . . . . . . . . . . . . . . . . . . . . Fabricator Hacks 8 | . . . . . . . . . . . . . . 5 . . . . . 1 . . . . . . . 1 . . . 1 . . Network Status 3 | . . . . . . . . . . . . . . 1 . . . . . . . . . . . . . 1 . . . 1 . . Load Schematic 2 | . . . . . . . . . . . . . . 2 . . . . . . . . . . . . . . . . . . . . Build 3 | . . . . . . . . . . . . . . 2 . . . . . 1 . . . . . . . . . . . . . . Repair Station Hacks 5 | . 2 . 2 . . . . . . . . . . 1 . . . . . . . . . . . . . . . . . . . . Scan Component 3 | . 1 . 1 . . . . . . . . . . 1 . . . . . . . . . . . . . . . . . . . . Repair 2 | . 1 . 1 . . . . . . . . . . . . . . . . . . . . . . . . . . . . . . . Recycling Unit Hacks 1 | . . . . . . . . . . . . . . . . . . 1 . . . . . . . . . . . . . . . . Retrieve Components 1 | . . . . . . . . . . . . . . . . . . 1 . . . . . . . . . . . . . . . . Scanalyzer 18 | . . . 10 . . . 4 . 2 . . . . . . . . . . . . . . 2 . . . . . . . . . . Insert Component 10 | . . . 5 . . . 3 . 1 . . . . . . . . . . . . . . 1 . . . . . . . . . . Analyze 8 | . . . 5 . . . 1 . 1 . . . . . . . . . . . . . . 1 . . . . . . . . . . Garrison Access Hacks 15 | . . . . . . . 1 . . 1 . 2 . 2 . 1 . 1 . 1 . 1 . 1 . . . 2 . 1 . 1 . . Unlock Access 9 | . . . . . . . 1 . . 1 . . . 1 . 1 . 1 . 1 . . . 1 . . . 1 . 1 . . . . Seal Access 6 | . . . . . . . . . . . . 2 . 1 . . . . . . . 1 . . . . . 1 . . . 1 . . Unauthorized Hacks 27 | . 4 . 7 . . . 2 . . 5 . 1 . 1 . . . . . 1 . . . . 1 . . 4 . . . 1 . . Terminals 19 | . 3 . 5 . . . 2 . . 5 . . . . . . . . . . . . . . 1 . . 3 . . . . . . Botnet 3 | . . . . . . . . . . . . . . . . . . . . . . . . . . . . 3 . . . . . . Disrupt 1 | . . . . . . . . . . . . . . . . . . . . . . . . . 1 . . . . . . . . . Skim 15 | . 3 . 5 . . . 2 . . 5 . . . . . . . . . . . . . . . . . . . . . . . . Fabricators 4 | . . . . . . . . . . . . . . 1 . . . . . 1 . . . . . . . 1 . . . 1 . . Haulers 3 | . . . . . . . . . . . . . . . . . . . . 1 . . . . . . . 1 . . . 1 . . Recompile 1 | . . . . . . . . . . . . . . 1 . . . . . . . . . . . . . . . . . . . . Repair Stations 1 | . . . . . . . . . . . . 1 . . . . . . . . . . . . . . . . . . . . . . Patch 1 | . . . . . . . . . . . . 1 . . . . . . . . . . . . . . . . . . . . . . Recycling Units 3 | . 1 . 2 . . . . . . . . . . . . . . . . . . . . . . . . . . . . . . . Tunnel 3 | . 1 . 2 . . . . . . . . . . . . . . . . . . . . . . . . . . . . . . . Scanalyzers . | . . . . . . . . . . . . . . . . . . . . . . . . . . . . . . . . . . . Garrison Access . | . . . . . . . . . . . . . . . . . . . . . . . . . . . . . . . . . . . Data Cores Recovered . | . . . . . . . . . . . . . . . . . . . . . . . . . . . . . . . . . . . Used . | . . . . . . . . . . . . . . . . . . . . . . . . . . . . . . . . . . . Hacking Detections 100 | . 4 . 12 . . . 5 2 1 8 3 7 . 9 4 2 3 1 1 5 . 2 . 4 3 2 . 7 2 1 1 3 7 1 Full Trace Events 12 | . . . 1 . . . 1 1 . . 1 . . 1 3 . . . . . . . . . . . . 1 1 1 . 1 . . Feedback Events 2 | . . . . . . . . 1 . . . . . . . . . . . . . . . . . . . . . . . 1 . . Corruption 2 | . . . . . . . . 1 . . . . . . . . . . . . . . . . . . . . . . . 1 . . Feedback Blocked . | . . . . . . . . . . . . . . . . . . . . . . . . . . . . . . . . . . . Robot Schematics Acquired 1 | . 1 . . . . . . . . . . . . . . . . . . . . . . . . . . . . . . . . . Robots Built 2 | . . . . . . . . . . . . . . 1 . . . . . 1 . . . . . . . . . . . . . . Authchips 1 | . . . . . . . . . . . . . . 1 . . . . . . . . . . . . . . . . . . . . Time 192 | . . . . . . . . . . . . . . 40 . . . . . 152 . . . . . . . . . . . . . . Total Robot Build Rating 6 | . . . . . . . . . . . . . . 1 . . . . . 5 . . . . . . . . . . . . . . Part Schematics Acquired 9 | . 3 . 4 . . . 1 . . . . 1 . . . . . . . . . . . . . . . . . . . . . . Parts Built 1 | . . . . . . . . . . . . . . 1 . . . . . . . . . . . . . . . . . . . . Authchips . | . . . . . . . . . . . . . . . . . . . . . . . . . . . . . . . . . . . Time 51 | . . . . . . . . . . . . . . 51 . . . . . . . . . . . . . . . . . . . . Total Part Build Rating 1 | . . . . . . . . . . . . . . 1 . . . . . . . . . . . . . . . . . . . . Parts Repaired 2 | . 1 . 1 . . . . . . . . . . . . . . . . . . . . . . . . . . . . . . . Time 68 | . 36 . 32 . . . . . . . . . . . . . . . . . . . . . . . . . . . . . . . Parts Recycled . | . . . . . . . . . . . . . . . . . . . . . . . . . . . . . . . . . . . Recycled Matter . | . . . . . . . . . . . . . . . . . . . . . . . . . . . . . . . . . . . Retrieved Matter . | . . . . . . . . . . . . . . . . . . . . . . . . . . . . . . . . . . . Retrieved Components 1 | . . . . . . . . . . . . . . . . . . 1 . . . . . . . . . . . . . . . . Parts Scanalyzed 7 | . . . 4 . . . 1 . 1 . . . . . . . . . . . . . . 1 . . . . . . . . . . Part Schematics Acquired 5 | . . . 4 . . . 1 . . . . . . . . . . . . . . . . . . . . . . . . . . . Parts Damaged 2 | . . . . . . . 1 . 1 . . . . . . . . . . . . . . . . . . . . . . . . . Bothacking | -11 -10 -10 -9 -9 -9 -8 -8 -8 -8 -8 -8 -7 -7 -7 -7 -7 -7 -6 -6 -6 -6 -5 -5 -5 -5 -4 -4 -4 -4 -3 -3 -2 -2 -2 ------------ Run | Yrd Mat Min Mat Min Exi Min Mat Gar Mat Sto Gar Fac Was Fac Gar Fac Gar Fac Gar Fac Gar Fac Was Fac Gar Fac Was Fac Gar Res Gar Res Qua Frg Used RIF Installer 10 | . . . . . . . . 1 . . 1 . . . 1 . 1 . 1 . 2 . . . 1 . . . 1 . 1 . . . Code Merge 1 | . . . . . . . . . . . . . . . . . . . 1 . . . . . . . . . . . . . . . Command Fork 1 | . . . . . . . . . . . . . . . . . . . . . . . . . . . . . 1 . . . . . Signal Jammer 1 | . . . . . . . . . . . . . . . . . . . . . 1 . . . . . . . . . . . . . Zone Cloak 1 | . . . . . . . . . . . . . . . . . . . . . . . . . 1 . . . . . . . . . Robot Detection 1 | . . . . . . . . . . . 1 . . . . . . . . . . . . . . . . . . . . . . . Alert ID Control 1 | . . . . . . . . . . . . . . . 1 . . . . . . . . . . . . . . . . . . . Structural Interface 1 | . . . . . . . . . . . . . . . . . . . . . . . . . . . . . . . 1 . . . Program Shield 1 | . . . . . . . . . . . . . . . . . 1 . . . . . . . . . . . . . . . . . Autoassimilate 1 | . . . . . . . . . . . . . . . . . . . . . 1 . . . . . . . . . . . . . Robots Hacked 170 | . . . . . 4 . . . 1 4 2 1 6 2 12 6 2 2 1 4 . 9 6 2 7 19 6 7 7 4 15 15 15 11 Non-combat 59 | . . . . . 2 . . . 1 4 . 1 . 2 2 3 . 2 . 4 . 7 . . . 12 . 4 . . 1 5 5 4 Combat 111 | . . . . . 2 . . . . . 2 . 6 . 10 3 2 . 1 . . 2 6 2 7 7 6 3 7 4 14 10 10 7 Autoassimilated 16 | . . . . . . . . . . . . . . . . . . . . . . 2 . 1 1 1 . 1 2 1 1 1 3 2 Robot Hacks Applied 188 | . . . . . 4 . . . 6 4 2 1 6 2 13 7 3 3 1 8 . 7 7 1 6 22 8 7 6 3 15 19 13 14 parse_system 21 | . . . . . 4 . . . . . . . . . 2 . . . . . . . 1 . . 1 1 1 1 . 1 3 1 5 no_distress 2 | . . . . . . . . . . 1 . . . . . . . . . . . . . . . 1 . . . . . . . . find_chute 4 | . . . . . . . . . . . . 1 . . . . . . . . . 1 . . . 2 . . . . . . . . ignore_repairs 2 | . . . . . . . . . . . . . . . . . . . . . . 2 . . . . . . . . . . . . randomize_corridors 1 | . . . . . . . . . . . . . . . . . . . . 1 . . . . . . . . . . . . . . drop_inventory 16 | . . . . . . . . . . 3 . . . . . 3 . 2 . . . 1 . . . 2 . 2 . . . 1 2 . locate_stockpiles 1 | . . . . . . . . . . . . . . . . . . 1 . . . . . . . . . . . . . . . . find_recycling 1 | . . . . . . . . . . . . . . . . . . . . . . . . . . 1 . . . . . . . . ignore_parts 6 | . . . . . . . . . . . . . . . . . . . . . . . . . . 4 . 2 . . . . . . purge_threat 11 | . . . . . . . . . 3 . . . . . . . . . . 3 . . . . . 2 . . . . 1 2 . . locate_traps 1 | . . . . . . . . . 1 . . . . . . . . . . . . . . . . . . . . . . . . . block_reporting 3 | . . . . . . . . . 1 . . . . . . . . . . 1 . . . . . . . . . . . 1 . . summon_haulers 3 | . . . . . . . . . 1 . . . . . . . . . . . . . . . . 1 . . . . . 1 . . map_route 7 | . . . . . . . . . . . . . . . . . . . . 1 . 2 . . . . . . . . . 2 1 1 mark_security 2 | . . . . . . . . . . . . . . . . . . . . 1 . . . . . . . . . . . . . 1 find_scanalyzer 1 | . . . . . . . . . . . . . . . . . . . . . . . . . . . . . . . . . 1 . ignore_targets 19 | . . . . . . . . . . . . . 6 . . . . . . . . . 6 . . . 7 . . . . . . . find_garrison 2 | . . . . . . . . . . . . . . . . 1 . . . . . . . 1 . . . . . . . . . . scatter_targeting 1 | . . . . . . . . . . . . . . . . . 1 . . . . . . . . . . . . . . . . . overload_power 2 | . . . . . . . . . . . . . . . . . . . . . . . . . . . . . . . . . 2 . amplify_resonance 13 | . . . . . . . . . . . . . . . 2 . 1 . . . . . . . 2 3 . . . . 1 2 2 . reboot_system 13 | . . . . . . . . . . . 1 . . . 2 . . . 1 . . . . . 1 . . . 1 . 1 3 1 2 overwrite_iff 8 | . . . . . . . . . . . . . . . 1 . . . . . . . . . . . . . 1 . 3 2 1 . streamctrl_high 1 | . . . . . . . . . . . . . . . 1 . . . . . . . . . . . . . . . . . . . formatsys_low 12 | . . . . . . . . . . . . . . 2 2 . . . . 1 . 1 . . . 2 . . . . 1 . 1 2 formatsys_high 35 | . . . . . . . . . . . 1 . . . 3 3 1 . . . . . . . 3 3 . 2 3 3 7 2 1 3 Relay Couplers Released 143 | . . . . . . . . 10 . . 9 . . . 20 . 9 . 8 . 19 . . . 19 1 . . 25 . 15 4 1 3 Machine Destruction 129 | . . . . . . . . 6 . . 9 . . . 17 . 9 . 8 . 19 . . . 19 1 . . 21 . 15 4 1 . Programmers 14 | . . . . . . . . 4 . . . . . . 3 . . . . . . . . . . . . . 4 . . . . 3 Attached 63 | . . . . . . . . . 2 . 1 . 1 1 6 2 1 1 1 2 2 1 . . 4 2 . 1 8 1 13 4 2 7 Merged Code Value 197 | . . . . . . . . . . . . . . . . . . . . . 31 . . . 69 . . . 36 . 34 . 14 13 Fabnet Peak Effective % . | . . . . . . . . . . . . . . . . . . . . . . . . . . . . . . . . . . . Robots Rewired 24 | . . . . . . . . 2 . . . . . . 7 . 6 . 1 . 4 1 . . 2 . . . . . 1 . . . Allies Hacked 3 | . . . . . . . . . . . . . . 1 1 . . . . . . . . . . . . . . . 1 . . . Hacks Repelled . | . . . . . . . . . . . . . . . . . . . . . . . . . . . . . . . . . . . Allies | -11 -10 -10 -9 -9 -9 -8 -8 -8 -8 -8 -8 -7 -7 -7 -7 -7 -7 -6 -6 -6 -6 -5 -5 -5 -5 -4 -4 -4 -4 -3 -3 -2 -2 -2 -------- Run | Yrd Mat Min Mat Min Exi Min Mat Gar Mat Sto Gar Fac Was Fac Gar Fac Gar Fac Gar Fac Gar Fac Was Fac Gar Fac Was Fac Gar Res Gar Res Qua Frg Total Allies 120 | . . . . 3 . . . 4 . 12 1 . . 3 14 3 9 . 1 2 4 4 1 1 6 6 1 3 6 4 14 5 6 7 Largest Group 10 | . . . . 3 3 . . 4 2 10 10 2 . 1 4 6 5 5 2 3 2 2 1 1 3 4 1 2 3 1 5 3 1 3 Highest-Rated Group 408 | . . . . 40 40 . . 77 36 173 173 32 . 26 130 162 250 250 190 165 194 194 31 47 124 173 46 98 210 64 337 297 344 408 Highest-Rated Ally 344 | . . . . 16 16 . . 25 20 31 29 16 . 26 39 39 95 95 116 116 109 109 31 47 49 56 46 49 116 64 119 183 344 344 Total Orders 37 | . . . . . 3 . . . . 6 4 . . 2 1 . . . 6 . . . . . 4 . . . . . 4 4 1 2 STAY 12 | . . . . . 3 . . . . . 1 . . . . . . . 2 . . . . . 2 . . . . . 2 2 . . ROAM 3 | . . . . . . . . . . 1 1 . . . . . . . 1 . . . . . . . . . . . . . . . FOLLOW 10 | . . . . . . . . . . . 1 . . . . . . . 3 . . . . . 2 . . . . . 2 2 . . AID 6 | . . . . . . . . . . . . . . 2 1 . . . . . . . . . . . . . . . . . 1 2 EXPLORE 5 | . . . . . . . . . . 4 1 . . . . . . . . . . . . . . . . . . . . . . . RETURN 1 | . . . . . . . . . . 1 . . . . . . . . . . . . . . . . . . . . . . . . Ally Attacks 809 | . . . . . 3 . . 20 9 23 94 . . . 31 52 52 19 18 18 20 18 93 3 27 8 28 22 15 13 67 33 10 113 Total Damage 27086 | . . . . . 27 . . 397 214 417 1219 . . . 582 1286 1084 839 785 1509 813 755 1616 97 840 183 744 1168 573 472 2330 1266 390 7480 Kills 163 | . . . . . . . . 6 2 5 13 . . . 5 12 14 5 11 13 4 6 3 . 7 1 . 11 2 . 11 5 2 25 Allies Corrupted 6 | . . . . . . . . . . . . . . . . . . . . . . 1 . . . . . 1 . . . . 1 3 Allies Melted 4 | . . . . . . . . . 1 . 1 . . . . 1 . . . . . . . . . 1 . . . . . . . . Turrets Deployed 1 | . . . . . . . . . . . . . . . . . . . . . . . . . . . . . . . 1 . . . Intel | -11 -10 -10 -9 -9 -9 -8 -8 -8 -8 -8 -8 -7 -7 -7 -7 -7 -7 -6 -6 -6 -6 -5 -5 -5 -5 -4 -4 -4 -4 -3 -3 -2 -2 -2 ------- Run | Yrd Mat Min Mat Min Exi Min Mat Gar Mat Sto Gar Fac Was Fac Gar Fac Gar Fac Gar Fac Gar Fac Was Fac Gar Fac Was Fac Gar Res Gar Res Qua Frg Active Infowar (turns) 1690 | 11 1065 . . . . . . . . . . . . . . . . . . . . . . . . . . . 2 . 1 . 123 488 Seismic 1076 | 11 1065 . . . . . . . . . . . . . . . . . . . . . . . . . . . . . . . . . Jamming 614 | . . . . . . . . . . . . . . . . . . . . . . . . . . . . . 2 . 1 . 123 488 Robot Analysis Total . | . . . . . . . . . . . . . . . . . . . . . . . . . . . . . . . . . . . Derelict Logs Recovered 4 | . . 2 . 2 . . . . . . . . . . . . . . . . . . . . . . . . . . . . . . Drone Launches 5 | . . . . . . . . . . 4 1 . . . . . . . . . . . . . . . . . . . . . . . Drone Recoveries 3 | . . . . . . . . . . 2 1 . . . . . . . . . . . . . . . . . . . . . . . Exploration | -11 -10 -10 -9 -9 -9 -8 -8 -8 -8 -8 -8 -7 -7 -7 -7 -7 -7 -6 -6 -6 -6 -5 -5 -5 -5 -4 -4 -4 -4 -3 -3 -2 -2 -2 ------------- Run | Yrd Mat Min Mat Min Exi Min Mat Gar Mat Sto Gar Fac Was Fac Gar Fac Gar Fac Gar Fac Gar Fac Was Fac Gar Fac Was Fac Gar Res Gar Res Qua Frg Turns Passed 57590 | 200 2601 1824 3674 1280 3508 1111 3295 2504 629 2677 1124 1766 195 2974 2071 680 1943 270 1633 1536 2181 1014 262 649 2165 1205 165 1569 2155 736 2157 907 3109 1821 Spaces Moved 21820 | 79 1076 543 1291 520 1440 400 1056 1277 297 954 394 605 67 1101 954 425 700 119 554 607 774 301 99 230 839 480 72 590 726 220 747 276 1405 602 Core 3 | 3 . . . . . . . . . . . . . . . . . . . . . . . . . . . . . . . . . . Treads 13283 | 76 1076 543 1291 520 518 400 1044 34 92 954 394 605 67 851 . . 521 . 525 607 774 301 99 230 88 . . . 460 220 747 246 . . Legs 3671 | . . . . . . . . . . . . . . . . . . . . . . . . . 331 480 72 590 266 . . 30 1405 497 Wheels 4828 | . . . . . 922 . 12 1243 205 . . . . 250 954 425 179 119 29 . . . . . 420 . . . . . . . . 70 Hover 35 | . . . . . . . . . . . . . . . . . . . . . . . . . . . . . . . . . . 35 Flight . | . . . . . . . . . . . . . . . . . . . . . . . . . . . . . . . . . . . Fastest Speed 50 | 50 160 320 240 240 210 240 210 120 150 235 250 247 247 145 138 138 138 190 205 225 225 240 240 240 175 196 196 190 190 240 240 190 190 120 Average Speed 216 | 155 205 320 240 240 220 240 239 154 176 242 250 249 247 227 148 138 214 193 233 225 231 240 240 240 197 196 196 193 221 240 240 239 190 219 Slowest Speed 610 | 160 320 320 240 240 240 240 560 560 235 250 250 250 247 247 190 138 320 205 320 225 240 240 240 240 240 196 196 196 240 240 240 410 330 610 Overloaded Moves . | . . . . . . . . . . . . . . . . . . . . . . . . . . . . . . . . . . . Propulsion Burnouts . | . . . . . . . . . . . . . . . . . . . . . . . . . . . . . . . . . . . Robots Hopped 2 | . . . . . . . . . . . . . . 2 . . . . . . . . . . . . . . . . . . . . Potential Cave-ins 77 | . . . . . . . . . . . . . . . . . . . . . . 18 . . . . . . . . . . . 59 Cave-ins Triggered 8 | . . . . . . . . . . . . . . . . . . . . . . 2 . . . . . . . . . . . 6 Exploration Rate (%) 55 | 7 99 100 94 94 91 67 67 90 31 95 52 22 72 32 92 15 85 5 58 22 73 11 76 11 83 16 78 21 90 10 68 15 95 19 Regions Visited 34 Branch Regions 7 Pre-discovered Areas 8 | . 1 . 3 2 1 . . . . 1 . . . . . . . . . . . . . . . . . . . . . . . . Known Exits Taken 12 | . . . 1 . . 1 1 . 1 1 . . . 1 . 1 . 1 . 1 . . . 1 . . . 1 . 1 . . . . Unknown Exits Taken 7 | 1 1 1 . 1 1 . . . . . . . . . . . . . . . . . . . . . . . . . . 1 1 . Scrap Searched 4 | . . 1 . 2 . 1 . . . . . . . . . . . . . . . . . . . . . . . . . . . . Spaces Dug 373 | . 13 7 21 . 15 . 2 28 . 3 . 4 . . 5 2 29 . 4 . 23 33 3 3 20 17 . 6 71 27 26 . 1 10 Terrain Destroyed 1241 | . 85 20 37 4 29 19 42 39 32 12 10 6 . 46 5 3 30 . 33 90 37 76 3 13 33 38 . 107 126 53 28 7 115 63 Melee 19 | . . . 1 . . . . . . 2 . 1 . . 5 . 2 . . . . . . . 1 . . . . 3 4 . . . Projectile 368 | . 4 . 3 4 . 4 19 . 6 8 . 5 . . . 3 1 . 1 7 36 49 3 13 15 38 . 55 19 7 4 7 36 21 AOE 851 | . 81 20 33 . 29 15 23 39 26 2 10 . . 46 . . 27 . 30 83 . 27 . . 17 . . 52 107 43 20 . 79 42 Terrain Rammed . | . . . . . . . . . . . . . . . . . . . . . . . . . . . . . . . . . . . Walls Destroyed . | . . . . . . . . . . . . . . . . . . . . . . . . . . . . . . . . . . . Machines Disabled . | . . . . . . . . . . . . . . . . . . . . . . . . . . . . . . . . . . . Actions | -11 -10 -10 -9 -9 -9 -8 -8 -8 -8 -8 -8 -7 -7 -7 -7 -7 -7 -6 -6 -6 -6 -5 -5 -5 -5 -4 -4 -4 -4 -3 -3 -2 -2 -2 --------- Run | Yrd Mat Min Mat Min Exi Min Mat Gar Mat Sto Gar Fac Was Fac Gar Fac Gar Fac Gar Fac Gar Fac Was Fac Gar Fac Was Fac Gar Res Gar Res Qua Frg Total 28228 | 115 1325 586 1693 535 1635 458 1657 1565 375 1217 471 763 84 1377 1342 491 929 157 780 710 992 446 119 293 1150 636 87 840 1046 326 997 429 1681 921 Wait 1588 | . 101 . 163 7 28 9 420 25 34 135 10 50 . 135 58 21 14 . 73 10 35 15 1 18 48 17 . 50 14 17 18 9 21 32 Move 21785 | 79 1075 542 1290 519 1439 399 1055 1276 296 953 393 605 66 1097 953 425 699 119 553 607 773 299 98 230 838 480 71 590 725 220 746 275 1404 596 Hop 2 | . . . . . . . . . . . . . . 2 . . . . . . . . . . . . . . . . . . . . Pick Up 457 | 8 30 5 41 . 26 . 21 15 3 10 5 14 1 22 19 4 11 8 15 10 13 9 4 2 27 11 1 23 17 6 23 14 22 17 Fast Attach 276 | 7 . . 9 . . . 7 4 4 7 3 8 1 8 11 2 3 4 12 6 6 2 . 4 18 7 2 11 37 3 23 5 34 28 Attach 202 | . 2 2 3 . 4 1 7 6 2 3 1 4 . 4 8 1 4 4 10 12 4 7 1 . 8 7 . 12 13 5 12 13 10 32 Detach 51 | . . . . . . . 1 . . . . . . . . . . . 5 4 . 1 . 1 1 1 . 1 11 1 3 5 5 11 Swap 595 | 1 17 8 36 . 27 4 26 60 9 18 10 13 5 22 34 11 28 7 17 5 18 22 3 7 34 11 1 23 25 14 33 18 16 12 Drop 601 | . 13 5 58 . 26 1 33 18 8 20 8 19 1 20 28 6 16 11 23 14 19 4 2 6 37 13 1 23 52 2 35 10 43 26 Fire 2193 | 20 78 19 86 6 76 41 78 101 18 57 27 44 10 62 137 21 96 4 70 35 108 84 10 22 94 83 11 105 105 55 91 69 113 157 Melee 54 | . . . 1 . 7 . . 10 . 2 . 2 . . 6 . 8 . . . . . . . 8 . . . . 3 7 . . . Ram 3 | . . . . . . . . . 1 . . . . 1 . . . . . . . . . . . . . . . . . . . 1 Kick 8 | . . . . . . . . . . . . . . . . . . . . . . . . . . 1 . 2 . . . . 3 2 Crush 54 | . 9 5 6 3 . 3 7 . . 7 . 2 . 2 . . . . . 7 . 1 . 1 . . . . . . . 1 . . Escape Stasis 218 | . . . . . . . . 40 . . 5 2 . 2 55 . 34 . 2 . 8 2 . 2 19 5 . . 20 . 6 . 10 6 Rewire 62 | . . . . . 2 . 2 2 . 5 . . . . 24 . 8 . . . 8 . . . 10 . . . . . . . . 1 Trap . | . . . . . . . . . . . . . . . . . . . . . . . . . . . . . . . . . . . Miscellaneous 79 | . . . . . . . . 8 . . 9 . . . 9 . 8 . . . . . . . 8 . . . 27 . . 10 . . Route ------- -11/Scrapyard -10/Materials (discovered 6 exits: *Mat x3 / *Min x2 / [*Sub]) -10/Mines (discovered 3 exits: *Mat x2 / [*Sub]) -9/Materials (discovered 5 exits: *Mat x3 / *Min x2) -9/Mines (discovered 4 exits: *Mat x2 / *Exi / [*Zio]) -9/Exiles (discovered 2 exits: [*Min x2]) -8/Mines (discovered 2 exits: *Mat x2) -8/Materials (discovered 6 exits: *Fac x3 / *Sto x2 / Gar) -8/Garrison (discovered 3 exits: *Mat x3) -8/Materials (discovered 2 exits: *Fac / *Sto) -8/Storage (discovered 3 exits: *Fac / Rec / Gar) -8/Garrison (discovered 3 exits: *Fac x3) -7/Factory (discovered 2 exits: Fac x2) -7/Waste -7/Factory (discovered 3 exits: *Fac / [*Low] / Gar) -7/Garrison (discovered 3 exits: *Fac x3) -7/Factory (discovered 2 exits: [*Low] / Gar) -7/Garrison (discovered 3 exits: *Fac x3) -6/Factory -6/Garrison (discovered 3 exits: *Fac x3) -6/Factory (discovered 3 exits: *Fac / [*Low] / Gar) -6/Garrison (discovered 3 exits: *Fac x3) -5/Factory -5/Waste -5/Factory -5/Garrison (discovered 3 exits: *Fac x3) -4/Factory -4/Waste -4/Factory -4/Garrison (discovered 3 exits: *Res x3) -3/Research -3/Garrison (discovered 3 exits: *Res x3) -2/Research -2/Quarantine (discovered 3 exits: [*Acc] / [*Sec] / *Frg) -2/Protoforge History --------- Turn | Location | Event 4 | -11/Scrapyard | Discovered new exit (range 16) 201 | -11/Scrapyard | Entered Materials 321 | -10/Materials | Build established: Mutant 491 | -10/Materials | Discovered new exit (range 7) 1101 | -10/Materials | Derelicts attacked the area 1587 | -10/Materials | Discovered new exit (range 15) 1645 | -10/Materials | Discovered new exit (range 7) 1671 | -10/Materials | Repaired Broken Lgt. Treads? 1895 | -10/Materials | Discovered new exit (range 3) 2144 | -10/Materials | Discovered new exit (range 7) 2533 | -10/Materials | Discovered new exit (range 4) 2802 | -10/Materials | Entered Mines 2879 | -10/Mines | Learned 2 Materials zone layouts 3142 | -10/Mines | Discovered new exit (range 11) 3270 | -10/Mines | Learned Materials stockpile data 3446 | -10/Mines | Discovered new exit (range 13) 3561 | -10/Mines | Discovered new exit (range 11) 3567 | -10/Mines | Core integrity fell below 50% 3641 | -10/Mines | A weapon hastily lodged in a ceiling crevice suddenly fell to the ground 3897 | -10/Mines | Found the Drone Emporium 3931 | -10/Mines | Found Prototype Device 4626 | -10/Mines | Entered Materials 4626 | -9/Materials | Evolved 2 slots: Propulsion x1, Weapon x1 5003 | -9/Materials | Discovered new exit (range 16) 5104 | -9/Materials | Build established: Scavenger-Gunner 5342 | -9/Materials | Discovered new exit (range 16) 5627 | -9/Materials | Identified Bomb Drone Bay 5714 | -9/Materials | Discovered new exit (range 4) 6417 | -9/Materials | Identified exit to Materials 6467 | -9/Materials | Identified exit to Mines 6506 | -9/Materials | Learned Materials stockpile data 6517 | -9/Materials | Repaired Hvy. Assault Rifle 6537 | -9/Materials | Learned 8 Materials zone layouts 6559 | -9/Materials | Learned Materials stockpile data 6573 | -9/Materials | Loaded intel: 19 trap records 6631 | -9/Materials | Learned location of 1 exit from Storage 7826 | -9/Materials | First assault squad dispatched 7899 | -9/Materials | Build established: Scavenger-Tank 8300 | -9/Materials | Entered Mines 8334 | -9/Mines | Deemed a non-threat by the Exiles lab entrance 8334 | -9/Mines | Discovered new exit (range 5) 8894 | -9/Mines | Learned location of Zion (-7) 8935 | -9/Mines | A Derelict revealed a hidden shortcut to a safe place 9093 | -9/Mines | Assisted by bots powering up and referring to "LRC-V3" 9269 | -9/Mines | Learned location of Storage (-8) 9273 | -9/Mines | Discovered exit to Materials (range 6) 9431 | -9/Mines | Received a Rocket Launcher from a helpful Derelict 9580 | -9/Mines | Entered Exiles 9580 | -9/Exiles | Accompanied by 3 allies 9612 | -9/Exiles | Discovered new exit (range 15) 9640 | -9/Exiles | Met 8R-AWN 9684 | -9/Exiles | Met EX-HEX 9849 | -9/Exiles | Met EX-DEC 9946 | -9/Exiles | Build established: Scavenger-Mutant 10006 | -9/Exiles | Discovered new exit (range 10) 10147 | -9/Exiles | Met EX-BIN 10177 | -9/Exiles | Aligned with FarCom system 10179 | -9/Exiles | Given EX-Vault access code 10229 | -9/Exiles | Opened EX-Vault 10248 | -9/Exiles | Found Modified TNC 10251 | -9/Exiles | Found Latent Energy Streamer 10258 | -9/Exiles | Found Firepult 10301 | -9/Exiles | Warned to stay clear of 0b10 Research branches 10838 | -9/Exiles | Visited The Gauntlet 11942 | -9/Exiles | Attacked by the Exiles 11976 | -9/Exiles | Lost 3 allies 12085 | -9/Exiles | Core integrity fell below 50% 12095 | -9/Exiles | Destroyed 8R-AWN 12101 | -9/Exiles | Found 8R-AWN's Armor/EX 12110 | -9/Exiles | Found Exp. Targeting Computer 12113 | -9/Exiles | Lost 4 parts (1u3w) 12324 | -9/Exiles | Build established: Scavenger-Tank 12390 | -9/Exiles | Destroyed EX-BIN 12399 | -9/Exiles | Destroyed EX-HEX 12493 | -9/Exiles | Destroyed EX-DEC 12536 | -9/Exiles | Found Deploy-a-Sentry 12600 | -9/Exiles | Found Prototype Device 12639 | -9/Exiles | Found AWS/EX-DEC 12642 | -9/Exiles | Found Exp. Core Analyzer 13088 | -9/Exiles | Stole four prototypes: Modified TNC, Latent Energy Streamer, Firepult, Deploy-a-Sentry 13088 | -9/Exiles | Entered Mines 13188 | -8/Mines | Discovered exit to Materials (range 3) 13249 | -8/Mines | Found a Scrap Suit stashed away for nefarious purposes 13729 | -8/Mines | Discovered exit to Materials (range 5) 14014 | -8/Mines | Core integrity fell below 20% 14151 | -8/Mines | Build established: Scavenger-Gunner 14199 | -8/Mines | Entered Materials 14199 | -8/Materials | Evolved 2 slots: Utility x1, Weapon x1 14200 | -8/Materials | Identified exit to Storage 14200 | -8/Materials | Identified exit to Factory 14782 | -8/Materials | Build established: Scavenger-Tank 14872 | -8/Materials | Garrison activated, responded to threat 15090 | -8/Materials | Build established: Scavenger-Gunner 15389 | -8/Materials | Discovered exit to Factory (range 16) 16999 | -8/Materials | First assault squad dispatched 17463 | -8/Materials | Identified exit to Garrison 17494 | -8/Materials | Entered Garrison 17552 | -8/Garrison | Triggered checkpoint 17742 | -8/Garrison | Triggered checkpoint 17870 | -8/Garrison | Triggered checkpoint 17870 | -8/Garrison | Triggered checkpoint 17948 | -8/Garrison | Destroyed 8 combat bots 18096 | -8/Garrison | Triggered checkpoint 18169 | -8/Garrison | Garrison Relay disabled 18213 | -8/Garrison | Discovered new exit (range 14) 18404 | -8/Garrison | Discovered new exit (range 12) 18440 | -8/Garrison | Triggered checkpoint 18470 | -8/Garrison | Triggered checkpoint 18645 | -8/Garrison | Triggered checkpoint 18695 | -8/Garrison | Triggered checkpoint 18989 | -8/Garrison | Rescued a captive Derelict 18989 | -8/Garrison | Rescued a captive Derelict 19169 | -8/Garrison | Installed Relay Interface Framework 19260 | -8/Garrison | Triggered checkpoint 19388 | -8/Garrison | Core integrity fell below 50% 19600 | -8/Garrison | Triggered checkpoint 19691 | -8/Garrison | Garrison Relay disabled 19712 | -8/Garrison | Destroyed 7 combat bots 19742 | -8/Garrison | Discovered new exit (range 8) 19998 | -8/Garrison | Entered Materials 19998 | -8/Materials | Accompanied by 2 allies 20251 | -8/Materials | Discovered exit to Factory (range 12) 20295 | -8/Materials | Identified System Purifier 20542 | -8/Materials | Discovered exit to Storage (range 9) 20627 | -8/Materials | Entered Storage 20628 | -8/Storage | Identified exit to Recycling 22130 | -8/Storage | Build established: Gunner 22295 | -8/Storage | Identified exit to Garrison 22596 | -8/Storage | Learned Factory garrison access intel 22613 | -8/Storage | Learned location of 1 exit from Lower Caves 22618 | -8/Storage | Learned location of 2 exits from Factory 22842 | -8/Storage | Met a pair of Derelict thieves 23100 | -8/Storage | Assisted by bots powering up and referring to "LRC-V3" 23304 | -8/Storage | Entered Garrison 23304 | -8/Garrison | Accompanied by 10 allies 23391 | -8/Garrison | Build established: Commander-Gunner 23448 | -8/Garrison | Phase Generator disabled 23518 | -8/Garrison | Triggered checkpoint 23546 | -8/Garrison | P-60 Hacker assimilated allied Soldier 3a 23594 | -8/Garrison | Triggered checkpoint 23637 | -8/Garrison | Expanded RIF knowledge: Robot Detection 23674 | -8/Garrison | Garrison Relay disabled 23948 | -8/Garrison | Triggered checkpoint 23951 | -8/Garrison | Triggered checkpoint 23993 | -8/Garrison | Lost 4 allies 24052 | -8/Garrison | Discovered exit to Factory (range 10) 24287 | -8/Garrison | Discovered exit to Factory (range 6) 24287 | -8/Garrison | Discovered exit to Factory (range 74) 24287 | -8/Garrison | Discovered exit to Factory (range 52) 24301 | -8/Garrison | Triggered checkpoint 24341 | -8/Garrison | Garrison Relay disabled 24410 | -8/Garrison | Build established: Gunner 24428 | -8/Garrison | Entered Factory 24428 | -7/Factory | Accompanied by 2 allies 24428 | -7/Factory | Evolved 2 slots: Propulsion x1, Utility x1 24429 | -7/Factory | Identified exit to Factory 24430 | -7/Factory | Loaded intel: 4 garrison access locations 26194 | -7/Factory | Sucked down chute 26194 | -7/Factory | Entered Waste 26209 | -7/Waste | EMP discharged 26209 | -7/Waste | System corruption reached 10% 26225 | -7/Waste | Spotted C-40 Crusher 26232 | -7/Waste | Spotted C-40 Crusher 26245 | -7/Waste | Spotted C-40 Crusher 26251 | -7/Waste | Spotted C-40 Crusher 26281 | -7/Waste | Spotted C-40 Crusher 26286 | -7/Waste | Spotted C-40 Crusher 26309 | -7/Waste | EMP discharged 26317 | -7/Waste | Destroyed C-40 Crusher 26362 | -7/Waste | Discovered new exit (range 10) 26389 | -7/Waste | Entered Factory 27469 | -7/Factory | Discovered exit to Factory (range 11) 27724 | -7/Factory | Discovered new exit (range 5) 28604 | -7/Factory | Destroyed 8 combat bots 28885 | -7/Factory | Fabricated M-13 Machinist? 29011 | -7/Factory | Fabricated Cargo Storage Unit? 29341 | -7/Factory | Build established: Hauler-Gunner 29363 | -7/Factory | Identified exit to Garrison 29363 | -7/Factory | Entered Garrison 29408 | -7/Garrison | Triggered checkpoint 29461 | -7/Garrison | Garrison Relay disabled 29740 | -7/Garrison | Core integrity fell below 50% 29781 | -7/Garrison | Triggered checkpoint 30101 | -7/Garrison | Triggered checkpoint 30124 | -7/Garrison | Expanded RIF knowledge: Alert ID Control 30151 | -7/Garrison | Garrison Relay disabled 30361 | -7/Garrison | Discovered new exit (range 11) 30444 | -7/Garrison | Lost 3 allies 30494 | -7/Garrison | Phase Generator disabled 30623 | -7/Garrison | Triggered checkpoint 30674 | -7/Garrison | Garrison Relay disabled 30716 | -7/Garrison | Discovered new exit (range 8) 30919 | -7/Garrison | Discovered new exit (range 11) 30921 | -7/Garrison | Triggered checkpoint 30958 | -7/Garrison | Build established: Bothacker-Gunner 30958 | -7/Garrison | Triggered checkpoint 31337 | -7/Garrison | Garrison Relay disabled 31434 | -7/Garrison | Entered Factory 31434 | -7/Factory | Accompanied by 4 allies 31736 | -7/Factory | Discovered new exit (range 7) 31834 | -7/Factory | First assault squad dispatched 32022 | -7/Factory | Garrison activated, responded to threat 32082 | -7/Factory | Lost 6 allies 32114 | -7/Factory | Identified exit to Garrison 32114 | -7/Factory | Entered Garrison 32214 | -7/Garrison | Triggered checkpoint 32243 | -7/Garrison | Garrison Relay disabled 32363 | -7/Garrison | Triggered checkpoint 32374 | -7/Garrison | Triggered checkpoint 32413 | -7/Garrison | Core integrity fell below 20% 32441 | -7/Garrison | Lost 3 allies 32449 | -7/Garrison | Destroyed 7 combat bots 32490 | -7/Garrison | Discovered exit to Factory (range 11) 33039 | -7/Garrison | Discovered exit to Factory (range 11) 33192 | -7/Garrison | Expanded RIF knowledge: Program Shield 33278 | -7/Garrison | Triggered checkpoint 33420 | -7/Garrison | Garrison Relay disabled 33581 | -7/Garrison | Triggered checkpoint 33733 | -7/Garrison | Found embedded Infiltrators 33768 | -7/Garrison | Discovered exit to Factory (range 10) 33784 | -7/Garrison | Triggered checkpoint 34057 | -7/Garrison | Entered Factory 34057 | -6/Factory | Accompanied by 5 allies 34057 | -6/Factory | Evolved 2 slots: Utility x2 34208 | -6/Factory | Lost 3 allies 34327 | -6/Factory | Identified exit to Garrison 34327 | -6/Factory | Entered Garrison 34327 | -6/Garrison | Accompanied by 2 allies 34396 | -6/Garrison | Discovered new exit (range 43) 34396 | -6/Garrison | Discovered new exit (range 64) 34396 | -6/Garrison | Discovered new exit (range 49) 34515 | -6/Garrison | Triggered checkpoint 34568 | -6/Garrison | Expanded RIF knowledge: Code Merge 34576 | -6/Garrison | Build established: Hauler-Tank 34611 | -6/Garrison | Garrison Relay disabled 34754 | -6/Garrison | Triggered checkpoint 34792 | -6/Garrison | Spotted B-75 Beast 34831 | -6/Garrison | Triggered checkpoint 34849 | -6/Garrison | Destroyed B-75 Beast 35139 | -6/Garrison | Spotted B-86 Titan 35153 | -6/Garrison | Rewired B-86 Titan 35161 | -6/Garrison | Allies destroyed B-86 Titan 35361 | -6/Garrison | Found Unknown Launcher 35361 | -6/Garrison | Identified Gamma Bomb Array 35645 | -6/Garrison | Garrison Relay disabled 35889 | -6/Garrison | Spotted Striker 35948 | -6/Garrison | Build established: Bothacker-Tank 35960 | -6/Garrison | Entered Factory 35960 | -6/Factory | Accompanied by 1 ally 36334 | -6/Factory | Discovered new exit (range 25) 36384 | -6/Factory | Discovered new exit (range 11) 36620 | -6/Factory | Build established: Hauler-Gunner 36819 | -6/Factory | Fabricated A-15 Conveyor? 36897 | -6/Factory | Spotted B-75 Beast 36902 | -6/Factory | Garrison activated, responded to threat 36919 | -6/Factory | Destroyed B-75 Beast 36962 | -6/Factory | Lost 3 allies 37247 | -6/Factory | Build established: Hauler-Tank 37496 | -6/Factory | Identified exit to Garrison 37496 | -6/Factory | Entered Garrison 37520 | -6/Garrison | Triggered checkpoint 37548 | -6/Garrison | Garrison Relay disabled 37554 | -6/Garrison | Heavy support dispatched to Factory 37849 | -6/Garrison | Build established: Bothacker-Tank 37876 | -6/Garrison | Triggered checkpoint 37900 | -6/Garrison | Triggered checkpoint 37945 | -6/Garrison | Triggered checkpoint 38045 | -6/Garrison | Expanded RIF knowledge: Signal Jamming 38047 | -6/Garrison | Heavy support dispatched to Factory 38098 | -6/Garrison | Triggered checkpoint 38192 | -6/Garrison | Expanded RIF knowledge: Autoassimilate 38207 | -6/Garrison | Garrison Relay disabled 38286 | -6/Garrison | Discovered new exit (range 12) 38505 | -6/Garrison | Build established: Botlord-Gunner 38620 | -6/Garrison | Discovered new exit (range 11) 38622 | -6/Garrison | Triggered checkpoint 38657 | -6/Garrison | Garrison Relay disabled 38922 | -6/Garrison | Spotted B-86 Titan 38941 | -6/Garrison | Rewired B-86 Titan 38944 | -6/Garrison | Rewired B-75 Beast 38948 | -6/Garrison | Allies destroyed B-86 Titan 39288 | -6/Garrison | Triggered checkpoint 39368 | -6/Garrison | Garrison Relay disabled 39460 | -6/Garrison | Discovered new exit (range 14) 39677 | -6/Garrison | Entered Factory 39677 | -5/Factory | Accompanied by 2 allies 39677 | -5/Factory | Evolved 2 slots: Utility x2 39848 | -5/Factory | Spotted B-75 Beast 39977 | -5/Factory | First assault squad dispatched 40596 | -5/Factory | Garrison activated, responded to threat 40636 | -5/Factory | Destroyed 7 combat bots 40658 | -5/Factory | Crushed by falling debris 40667 | -5/Factory | Crushed by falling debris 40691 | -5/Factory | Sucked down chute 40691 | -5/Factory | Entered Waste 40692 | -5/Waste | Met a frightened Derelict 40701 | -5/Waste | Found Adv. Powered Armor 40706 | -5/Waste | EMP discharged 40706 | -5/Waste | System corruption reached 10% 40725 | -5/Waste | Spotted C-40 Crusher 40728 | -5/Waste | Spotted C-40 Crusher 40770 | -5/Waste | Allies destroyed C-40 Crusher 40776 | -5/Waste | Spotted C-40 Crusher 40789 | -5/Waste | Spotted C-40 Crusher 40804 | -5/Waste | Spotted C-40 Crusher 40806 | -5/Waste | EMP discharged 40808 | -5/Waste | Spotted C-40 Crusher 40906 | -5/Waste | EMP discharged 40931 | -5/Waste | Discovered new exit (range 10) 40953 | -5/Waste | Entered Factory 40974 | -5/Factory | Build established: Botlord-Tank 41602 | -5/Factory | Identified exit to Garrison 41602 | -5/Factory | Entered Garrison 41661 | -5/Garrison | Triggered checkpoint 41744 | -5/Garrison | Expanded RIF knowledge: Zone Cloak 41816 | -5/Garrison | Garrison Relay disabled 42000 | -5/Garrison | System corruption reached 30% 42215 | -5/Garrison | Triggered checkpoint 42374 | -5/Garrison | Triggered checkpoint 42428 | -5/Garrison | Triggered checkpoint 42464 | -5/Garrison | Garrison Relay disabled 42543 | -5/Garrison | Discovered new exit (range 67) 42543 | -5/Garrison | Discovered new exit (range 32) 42543 | -5/Garrison | Discovered new exit (range 22) 42653 | -5/Garrison | Build established: Botlord-Gunner 42653 | -5/Garrison | Triggered checkpoint 42752 | -5/Garrison | Triggered checkpoint 42770 | -5/Garrison | Garrison Relay disabled 42823 | -5/Garrison | Triggered checkpoint 43346 | -5/Garrison | Spotted B-75 Beast 43358 | -5/Garrison | Allies destroyed B-75 Beast 43402 | -5/Garrison | Core integrity fell below 50% 43444 | -5/Garrison | Found Unknown Hackware 43448 | -5/Garrison | Found Unknown Hackware 43452 | -5/Garrison | Found Unknown Hackware 43456 | -5/Garrison | Found Unknown Hackware 43660 | -5/Garrison | Triggered checkpoint 43687 | -5/Garrison | Garrison Relay disabled 43767 | -5/Garrison | Entered Factory 43767 | -4/Factory | Accompanied by 3 allies 43767 | -4/Factory | Evolved 2 slots: Utility x2 43768 | -4/Factory | Garrison activated, responded to threat 43836 | -4/Factory | Lost 6 allies 44672 | -4/Factory | Destroyed 7 combat bots 44972 | -4/Factory | Sucked down chute 44972 | -4/Factory | Entered Waste 44973 | -4/Waste | Met a frightened Derelict 44987 | -4/Waste | EMP discharged 44992 | -4/Waste | Spotted C-40 Crusher 45039 | -4/Waste | Spotted C-40 Crusher 45044 | -4/Waste | Spotted C-40 Crusher 45053 | -4/Waste | Spotted C-40 Crusher 45084 | -4/Waste | Spotted C-40 Crusher 45087 | -4/Waste | EMP discharged 45089 | -4/Waste | Spotted C-40 Crusher 45099 | -4/Waste | Discovered new exit (range 15) 45137 | -4/Waste | Entered Factory 45303 | -4/Factory | Garrison activated, responded to threat 45716 | -4/Factory | Build established: Botlord-Mutant 45734 | -4/Factory | Garrison activated, responded to threat 46042 | -4/Factory | Cargo convoy interrupted 46151 | -4/Factory | Lost 3 parts (1n2w) 46241 | -4/Factory | Build established: Botlord-Gunner 46523 | -4/Factory | Garrison activated, responded to threat 46706 | -4/Factory | Identified exit to Garrison 46706 | -4/Factory | Entered Garrison 46770 | -4/Garrison | Triggered checkpoint 46809 | -4/Garrison | Destroyed 7 combat bots 46922 | -4/Garrison | Garrison Relay disabled 46953 | -4/Garrison | Heavy support dispatched to Research 46975 | -4/Garrison | Expanded RIF knowledge: Command Fork 47016 | -4/Garrison | Phase Generator disabled 47122 | -4/Garrison | System corruption reached 10% 47253 | -4/Garrison | Triggered checkpoint 47258 | -4/Garrison | Triggered checkpoint 47260 | -4/Garrison | Spotted B-86 Titan 47269 | -4/Garrison | Triggered checkpoint 47286 | -4/Garrison | Destroyed B-86 Titan 47315 | -4/Garrison | Lost 3 allies 47324 | -4/Garrison | Triggered checkpoint 47521 | -4/Garrison | Discovered new exit (range 13) 47574 | -4/Garrison | Triggered checkpoint 47677 | -4/Garrison | Garrison Relay disabled 47770 | -4/Garrison | Build established: Botlord-Tank 47917 | -4/Garrison | Discovered new exit (range 8) 48002 | -4/Garrison | System corruption reached 30% 48051 | -4/Garrison | Triggered checkpoint 48072 | -4/Garrison | Core integrity fell below 50% 48358 | -4/Garrison | Build established: Botlord-Gunner 48385 | -4/Garrison | H-XX Assembler disabled 48573 | -4/Garrison | Discovered new exit (range 5) 48599 | -4/Garrison | Triggered checkpoint 48652 | -4/Garrison | Rescued a captive Derelict 48653 | -4/Garrison | Rescued a captive Derelict 48700 | -4/Garrison | Garrison Relay disabled 48861 | -4/Garrison | Entered Research 48861 | -3/Research | Evolved 2 slots: Power x1, Utility x1 49000 | -3/Research | Build established: Botlord-Tank 49294 | -3/Research | Garrison activated, responded to threat 49391 | -3/Research | Lost 3 parts (3w) 49401 | -3/Research | Destroyed 12 combat bots 49543 | -3/Research | System corruption reached 10% 49597 | -3/Research | Identified exit to Garrison 49597 | -3/Research | Entered Garrison 49639 | -3/Garrison | Build established: Botlord-Mutant 49677 | -3/Garrison | Triggered checkpoint 49720 | -3/Garrison | Garrison Relay disabled 49850 | -3/Garrison | Heavy support dispatched to Research 49953 | -3/Garrison | Found Unknown Device 49953 | -3/Garrison | Identified Adv. Force Booster 50134 | -3/Garrison | Triggered checkpoint 50161 | -3/Garrison | Spotted B-86 Titan 50163 | -3/Garrison | Triggered checkpoint 50166 | -3/Garrison | Assimilated Titan 8a with formatsys_high 50232 | -3/Garrison | Lost 8 allies 50247 | -3/Garrison | Triggered checkpoint 50291 | -3/Garrison | Build established: Botlord-Tank 50345 | -3/Garrison | Discovered new exit (range 34) 50345 | -3/Garrison | Discovered new exit (range 55) 50345 | -3/Garrison | Discovered new exit (range 68) 50384 | -3/Garrison | Triggered checkpoint 50453 | -3/Garrison | Garrison Relay disabled 50560 | -3/Garrison | Spotted Executioner 50560 | -3/Garrison | Spotted Executioner 50579 | -3/Garrison | Destroyed Executioner 50589 | -3/Garrison | Rewired Executioner 50785 | -3/Garrison | Heavy support dispatched to Research 50843 | -3/Garrison | Triggered checkpoint 50865 | -3/Garrison | DAS Turret deployed 50914 | -3/Garrison | Lost 3 allies 51144 | -3/Garrison | Garrison Relay disabled 51339 | -3/Garrison | Expanded RIF knowledge: Structural Interface 51381 | -3/Garrison | H-XX Assembler disabled 51572 | -3/Garrison | Garrison Relay disabled 51750 | -3/Garrison | System corruption reached 30% 51754 | -3/Garrison | Entered Research 51754 | -2/Research | Accompanied by 2 allies 51754 | -2/Research | Evolved 2 slots: Utility x2 52004 | -2/Research | First assault squad dispatched 52065 | -2/Research | Spotted B-90 Cyclops 52080 | -2/Research | P-80 Master assimilated allied *Bing Chilling 52125 | -2/Research | Destroyed B-90 Cyclops 52155 | -2/Research | Lost 3 parts (1n1u1w) 52652 | -2/Research | Discovered new exit (range 7) 52661 | -2/Research | Entered Quarantine 52893 | -2/Quarantine | Build established: Botlord-Gunner 53233 | -2/Quarantine | Cryocooling Duct disabled 53248 | -2/Quarantine | Ambient heat levels rising (+20) 53248 | -2/Quarantine | Non-combat units ordered to evacuate 53755 | -2/Quarantine | System corruption reached 10% 54149 | -2/Quarantine | Found Alien Artifact 54425 | -2/Quarantine | Garrison activated, responded to threat 54490 | -2/Quarantine | Destroyed 9 combat bots 55246 | -2/Quarantine | Discovered new exit (range 8) 55267 | -2/Quarantine | Found Alien Artifact 55326 | -2/Quarantine | Found Alien Reactor 55411 | -2/Quarantine | First assault squad dispatched 55445 | -2/Quarantine | System corruption reached 30% 55519 | -2/Quarantine | Destroyed 8 combat bots 55615 | -2/Quarantine | Identified Relay Coupler [Proto] (x4) 55621 | -2/Quarantine | Spotted Fortress 55624 | -2/Quarantine | Assimilated Fortress with formatsys_high 55761 | -2/Quarantine | Discovered new exit (range 6) 55761 | -2/Quarantine | Discovered new exit (range 6) 55770 | -2/Quarantine | Entered Protoforge 55770 | -2/Protoforge | Accompanied by 1 ally 55827 | -2/Protoforge | Superfortress began startup sequence 55989 | -2/Protoforge | Spotted Hotshot 55994 | -2/Protoforge | Spotted Hotshot 55996 | -2/Protoforge | Spotted Hotshot 55998 | -2/Protoforge | Spotted Hotshot 56009 | -2/Protoforge | Allies destroyed Hotshot 56011 | -2/Protoforge | Destroyed Hotshot 56020 | -2/Protoforge | First assault squad dispatched 56020 | -2/Protoforge | Destroyed Hotshot 56027 | -2/Protoforge | Destroyed Hotshot 56174 | -2/Protoforge | Spotted Hotshot 56177 | -2/Protoforge | Spotted Hotshot 56179 | -2/Protoforge | Spotted Hotshot 56181 | -2/Protoforge | Spotted Hotshot 56183 | -2/Protoforge | Spotted Hotshot 56186 | -2/Protoforge | Destroyed Hotshot 56199 | -2/Protoforge | Destroyed Hotshot 56285 | -2/Protoforge | Destroyed Hotshot 56314 | -2/Protoforge | Lost 6 parts (1n1u4w) 56315 | -2/Protoforge | Destroyed Hotshot 56316 | -2/Protoforge | Core integrity fell below 50% 56347 | -2/Protoforge | Spotted Overlord 56348 | -2/Protoforge | Autoassimilated Overlord with RIF 56387 | -2/Protoforge | Found Prototype Protection 56588 | -2/Protoforge | Spotted B-90 Cyclops 56657 | -2/Protoforge | Allies destroyed B-90 Cyclops 56697 | -2/Protoforge | Identified Centrium Heavy Armor Plating 56874 | -2/Protoforge | Identified Matter Drive 56900 | -2/Protoforge | Crushed by falling debris 56907 | -2/Protoforge | Crushed by falling debris 56915 | -2/Protoforge | Crushed by falling debris 56934 | -2/Protoforge | Crushed by falling debris 56946 | -2/Protoforge | Crushed by falling debris 56977 | -2/Protoforge | Lost 13 parts (1p2n9u1w) 57048 | -2/Protoforge | Found Prototype Energy Gun 57048 | -2/Protoforge | Identified Cep. Variable Chargecaster 57075 | -2/Protoforge | Found Prototype Device 57075 | -2/Protoforge | Identified Cep. Recoil Nullifier 57135 | -2/Protoforge | Additional patrols dispatched to research labs 57178 | -2/Protoforge | Crushed by falling debris 57191 | -2/Protoforge | Spotted V025-x 57199 | -2/Protoforge | Found Prototype Protection 57199 | -2/Protoforge | Identified Cep. RG22 Armor 57212 | -2/Protoforge | Found Prototype Protection 57212 | -2/Protoforge | Identified Cep. Core Shell 57231 | -2/Protoforge | Found Cep. Core Shell 57244 | -2/Protoforge | Destroyed V025-x 57248 | -2/Protoforge | Identified Subatomic Replicator 57248 | -2/Protoforge | Used Subatomic Replicator to replicate Firepult 57269 | -2/Protoforge | Build established: Hauler-Mutant 57283 | -2/Protoforge | Found Prototype Device 57283 | -2/Protoforge | Identified Exp. EM Disruption Field 57284 | -2/Protoforge | Spotted V276-g 57292 | -2/Protoforge | Destroyed V276-g 57324 | -2/Protoforge | Spotted V780-t 57345 | -2/Protoforge | Destroyed V780-t 57346 | -2/Protoforge | Spotted V703-c 57362 | -2/Protoforge | Scanned by Researcher 57378 | -2/Protoforge | Destroyed V703-c 57394 | -2/Protoforge | Identified Transdimensional Reconstructor 57394 | -2/Protoforge | Forge Plexus network access discovered 57396 | -2/Protoforge | Lost 3 parts (1n2u) 57409 | -2/Protoforge | Spotted Decapitator 57409 | -2/Protoforge | Spotted Decapitator 57409 | -2/Protoforge | Spotted Decapitator 57412 | -2/Protoforge | Destroyed Decapitator 57415 | -2/Protoforge | Destroyed Decapitator 57418 | -2/Protoforge | Destroyed Decapitator 57552 | -2/Protoforge | Found Cep. Core Shell 57555 | -2/Protoforge | Found Cep. Core Shell 57567 | -2/Protoforge | Found Prototype Launcher 57567 | -2/Protoforge | Identified Cep. Concussive Dispersal Blaster 57592 | -2/Protoforge | System corrupted Last Messages --------------- 57584_ Flexi-carbon Leg melted. 57584_ Unknown Reactor melted. 57584_ Power Sword melted. 57584_ Unknown Processor melted. 57584_ Imp. Core Shielding melted. 57584_ Flexi-carbon Leg melted. 57584_ L-61 Swordsman destroyed. 57586_ C-30 ARC bursts open, deploying its payload. 57586_ G-73 Enforcer unfolds itself. 57586_ M-36 Artificer unfolds itself. 57588_ System corrupted: Firepult failed to cycle. 57588_ G-73 Enforcer overheating. 57589_ Firepult destroyed. 57590_ Broken Centrium Leg destroyed. 57590_ N-04 Retriever collects Unknown Impact Weapon. 57591_ Research Cell breached. 57591_ G-73 Enforcer destroyed. 57591_ N-04 Retriever destroyed. 57591_ Destroyed Wheel. 57592_ Cogmind system terminally corrupted. Map ----- +----------------------------------------------------+ | ?????????????????????????????????????????????????? | | ?????????????????????????????????????????????????? | | ?????????????????????????????????????????????????? | | ?????????????????????????????????????????????????? | | ????????????????????=??==?==?????????????????????? | | ??????????????????==?======??????????????????????? | | ?????????????????????????????????????????????????? | | ?????????????????????????????????????????????????? | | ?????????????????????????????????????????????????? | | ?????????????????????????????????????????????????? | | ?????????????????????????????????????????????????? | | ?????????????????????????????????????????????????? | | ???????????????###############???????????????????? | | ???????????????#"""""""""""""#???????????????????? | | ???????????????#"!! !! ! "#???????????????????? | | ???????????????#" ! !!!!"#???????????????????? | | ???????????????#####" """"""##???????????????????? | | ?????????????????# "#???????????????????? | | ?????????????????# "#???????????????????? | | ##################/ ""#???????????????????? | | |% ! [ ggm! """"#???????????????????? | | %! %gg%% """"#???????????????????? | | ######## ########%[ ! ""#???????????????????? | | ?????#" #*=% !!! "#???????????????????? | | ?????#" ! ##???????????????????? | | ?????#" " " @ #???????????????????? | | ?????#"""?"""# #???????????????????? | | ?????####????# #### """" ##???????????????????? | | ?????????????####?##"! * ???????????????????? | | ??????????????????# " ! %% #?????????????????? | | ??????????????????##"" # #?????????????????? | | ???????????????????##### #?????????????????? | | ??????????????????????## # #?????????????????? | | ??????????????????????# ####?????????????????? | | ??????????????????????# #????????????????????? | | ??????????????????????# #????????????????????? | | ??????????????????????# ##????????????????????? | | ??????????????????????# #?????????????????????? | | ??????????????????????# ##?????????????????????? | | ??????????????????????#"""#??????????????????????? | | ??????????????????????# #??????????????????????? | | ??????????????????????# "#??????????????????????? | | ??????????????????????# #??????????????????????? | | ?????????????????????? #??????????????????????? | | ??????????????????????# #??????????????????????? | | ??????????????????????# #??????????????????????? | | ?????#??????######????# ??????????????????????? | | ???#"""????##" ""###### ##?????????????????????? | | ???#!!!!####"!!! """""""""#??????????????????????? | | ?? "#??????????????????????? | +----------------------------------------------------+ Best States ------------- Heat Dissipation 153 Coolant Potential 80 Energy Generation 43 Energy Capacity 975 Matter Stores 300 Matter Capacity 300 Sight Range 16 Terrain Scan Density 10 Jamming Range 16 Base Temperature (-) 200 EM Shielding 2 Corruption Block 6 Armor Coverage 1650 Resistance: TH 25 Resistance: EX 90 Resistance: EM 25 Core Shielding 90 Point Defense Rating 240 Evasion (%) 55 Targeting Accuracy 12 Core Analysis 6 Recoil Reduction 99 Matter Filtering 30 Energy Filtering 30 Offensive Hacking 24 Defensive Hacking 12 Relay Coupler Types 8 Relay Coupler Value 278 Authchip Count 1 Item Schematics ----------------- Huge Storage Unit | -10/Materials | Hacked Lgt. Assault Rifle | -10/Materials | Hacked Utility Shielding | -10/Materials | Hacked Slug Cannon | -9/Materials | Scanalyzed Arm. Wheel | -9/Materials | Scanalyzed Shield Generator | -9/Materials | Scanalyzed Machine Analyzer | -9/Materials | Scanalyzed Exp. Core Analyzer | -8/Materials | Scanalyzed Cargo Storage Unit | -7/Factory | Hacked Robot Schematics ------------------ M-13 Machinist | -10/Materials | Hacked Fabricated ------------ M-13 Machinist | x1 | -7/Factory | Authchip Cargo Storage Unit | x1 | -7/Factory A-15 Conveyor | x1 | -6/Factory | Preloaded Repaired ---------- Lgt. Treads | 88% | -10/Materials | Broken Hvy. Assault Rifle | 26% | -9/Materials Alien Tech Used ----------------- Matter Drive Subatomic Replicator Achievements -------------- None Challenges ------------ None Game ------ Seed GrenadeCoolingDriver Manual? 0 Play Time 09:37:33 Cumulative 850.2 hours Start 2025.05.30 @ 13:14:43 End 2025.06.01 @ 19:49:38 Sessions 11 Manual Loads 0 Difficulty Rogue Special Mode None Game No. 469 Rogue 469 Adventurer 0 Explorer 0 Win Type - Total 22 Types 10/3/3/0/1/1/2/2/0/0 Lore% 79 Gallery% 85 Achievement% 83 Wizard Run 0 Options --------- Layout 0 ASCII 0 Keyboard 0 Movement Numpad Keybinds 0 Fullscreen 2 Font 24/Smallcaps Map View 76x50 Zoom Use 0% Tactical HUD 1 Map Filters NONE Filters NONE Steam 1 RUN: f674ecde-c627-42f5-a613-569a8118b774